Workbook

Sheet Cover Page
D1: Add company logo
N2: Version 22.2
B8: Add photo
N13: Notes:
N14: This template may require adjustments by individual operators to meet specific reporting requirements as defined in the site Permit(s)
B29: Annual Performance Report 2022
B31: Permit EPR/JP3135DK
B33: Kemsley Generating Station
B35: K3 CHP
B37: enfinium K3 CHP Operations Limited
B39: Year: | C39: 2022
B41: Address: | C41: Barge Way, Sittingbourne, Kent, ME10 2FP
B43: Tel: | C43: 01795 685 740
B45: Email: | C45: fiona.gormley@enfinium.co.uk
B47: Prepared by: | C47: Fiona Gormley | F47: Position: | G47: SHEQ Coordinator
B49: Approved by: | C49: Jonathan Farebrother | F49: Position: | G49: Plant Manager
B51: Version: | C51: 1
B53: Issue Date: | C53: 2023-01-26

Sheet Contents
A1: =+'Cover Page'!$B$29 -> Annual Performance Report 2022 | E1: =+'Cover Page'!$B$33 -> Kemsley Generating Station
A3: Contents | K3: Notes:
A4: Section | B4: Subject | H4: Page | K4: Section references and Page nos. to be inserted
A5: 1 | B5: Facility Information | H5: 3 | K5: Sections and Subjects may require adjustment by individual operators to meet specific reporting requirements as defined in the sites Permit(s)
A6: 2 | B6: Operational Summary | H6: 4
A7: 3 | B7: Operational Data | H7: 5
A8: 4 | B8: Performance Form 1 | H8: 6
A9: 5 | B9: Energy Form 1 | H9: 7
A10: 6 | B10: Permit Compliance | H10: 8
A11: 7 | B11: Improvements | H11: 9
A12: 8 | B12: Public Liasion | H12: 10
A13: 9 | B13: Residue Quality - Optional | H13: 11
A14: 10 | B14: Carbon Dioxide Emissions | H14: 12
A15: 11 | B15: Emissions to Water | H15: 13
A16: 12 | B16: Emissions to Air (periodically monitored) | H16: 14
A17: 13 | B17: Emissions to Air (continuously monitored) | H17: 15
A18: 14 | B18: Hydrogen Chloride emissions | H18: 16
A19: 15 | B19: Sulphur Dioxdie emsissions | H19: 17
A20: 16 | B20: Oxides of Notrigen emissions | H20: 18
A21: 17 | B21: Total Organic Carbon emissions | H21: 19
A22: 18 | B22: Particulate Matter emissions | H22: 20
A23: 19 | B23: Carbon Monoxide emissions | H23: 21
A24: 20 | B24: Ammonia emissions | H24: 22
A27: Version Control
A28: Section | B28: Information | H28: Date
A29: All | B29: Final Report Version 1 | H29: 2023-01-26
A35: Distribution
A36: Copy | B36: Name, Role | H36: No.
B37: InstallationsKSLES@environment-agency.gov.uk - Regulator (EA)
B38: Jonathan.Farebrother@enfinium.co.uk - Plant Manager
B39: Fiona.Gormley@enfinium.co.uk - SHEQ Coordinator (Acting Environmental Manager)
B40: Stewart.Davies@enfinium.co.uk - Senior Environment & Sustainability Advisor
A45: This report is required under the Industrial Emissions Directive’s Article 55(2) requirements on reporting and public information on waste incineration plants and co-incineration plants, which require the operator to produce an annual report on the functioning and monitoring of the plant and make it available to the public.

Sheet Facility Info
A1: =+'Cover Page'!$B$29 -> Annual Performance Report 2022 | E1: =+'Cover Page'!$B$33 -> Kemsley Generating Station
A3: Plant Description and Design | K3: Notes:
A4: The Kemsley Energy Recovery Facility (ERF) forms part of the Kemsley Paper Mill installation comprising of the DS Smith Kemsley Paper Mill and the E.On combined heat and power facility. It is located at grid reference 592170,166640 to the east of Kemsley, 3 km north of Sittingbourne and 2.5 km south east of Iwade. The installation consists of two combustion lines and processes up to 657,000 tonnes of residual waste per annum (tpa); primarily commercial and industrial (C&I) waste and residual Municipal Solid Waste (MSW) which is collected and delivered by external private waste management companies. Energy is recovered in the process by utalising the steam generated in the boiler to drive a turbine to generate electricity. Approximately 45MW of electricity can be exported to grid per hour and 55MWth per hour of steam can be supplied to neighbouring businesses (the paper mill when it is running at capacity). Recycable materials in the form of incinerator bottom ash (IBA) and metals from the IBA are also recobvered from the process. The existing permit (Permit number EPR/JP3135DK) allows the facility to accept municipal, industrial and commercial waste and undertake the following activities: • Receipt and storage of waste pending processing; • Electricity and steam generation; and • Disposal of waste arising (incinerator bottom ash (IBA) and air pollution control residues (APCR). | K4: Include summary of plant design, design capacity, no. of combustion lines, electrical and heat capacity and any other general information that descibes the facility, its location and purpose
A19: Summary of Operational Processes and Procedures
A20: Municipal solid wastes and commercial wastes accepted at the installation are delivered in covered vehicles or containers. All vehicles delivering the waste are weighed in at the weighbridge before entering the Tipping Hall and being allowed to discharge waste. The residual waste is discharged onto the tipping hall floor and pushed into the bunker using mobile and is utilised as feedstock for the ERF. The waste in the bunker is mixed with a crane to create a homogenous feedstock and to prevent anaerobic conditions and hence odour. Waste is loaded into the incinerator, using the crane, via the feed hopper. The facility processes waste using air cooled, moving grate technology. The grate is split into 5 zones; zone 1 is the drying zone; 2-3 are the main combustion zones and 4-5 are the burn out zones. Primary and secondary air supply is controlled to ensure good combustion conditions, additional support in combustion is provided through tertiary air injection. A temperature of at least 850°C for at least 2 seconds (T2S) is achieved. After the waste has been burned the remaining unburnt material, called incinerator bottom ash (IBA) is quenched in water. The bottom ash is transported by conveyor to an indoor storage area. The IBA is stored here until it is sent off site to a suitably licensed waste treatment facility for re-processing/recovery. The flue gas is treated within the dry Flue Gas Treatment (FGT) system to reduce the level of pollutants emitted and to comply with the requirements of the Industrial Emissions Directive (IED) and the Environmental Permit. Oxides of Nitrogen (NOx) are abated using dry urea; acid gases such as Hydrogen Chloride (HCl) and Sulphur Dioxins (SO2) are abated using hydrated lime injection. For dioxins and mercury, Powdered Activated Carbon (PAC) abatement is used. Fabric bag filters are utilised for the abatement of particulate matter and also to collect the by-products from both reactions known as Air Pollution Control Residue (APCR) which is transferred to a silo then to a tanker (or sealed bags are sometimes used) for removal from the facility and disposal at a suitably licenced premises. Following clean up, the flue gas is emitted to air through the 90m high stack. The flue gases entering the stack are continuously monitored for HCl, SO2, TOC, CO, NOx, NH3 and Particulates against limits as laid down in the Environmental Permit. The heat from the combustion process is used to turn water into high-pressure steam, that steam then powers a turbine to generate electricity for internal use and for export to the National Grid. The facility also has combined heat and power (CHP) capability and supplies the adjacent DS Smith paper mill with steam. Spent steam from the turbine is converted back to condensate in an air-cooled condenser, which feeds back into the condensate tank. The facility is designed to export approximately 45MW of electricity to the grid, and 55 MWth of steam to the paper mill when it is running at capacity. The facility is certified to ISO 45001, 9001 and 14001 and operates an accredited Management System housing the processes and procedures to be followed. The facility has procedures in place including emergency procedures, operating instructions, method statements and risk assessments. All health, safety and environmental incidents, events and resulting investigations and actions are managed within the companies EHS reporting system. The facility has a Computer Maintenance Management System (CMMS) in place housing all maintenance tasks and defect reporting. Planned outages take place at specified intervals to allow for boiler cleaning, statutory and essential maintenance to maintain plant reliability and efficiency. | K20: Include summary of key processes and procedures such as (but not limited to); waste reception, control rooms, grate, bed and boiler, energy & heat generation, cooling systems, residue management, emission controls, health and safety systems, maintenance

Sheet Operational Summary
A1: =+'Cover Page'!$B$29 -> Annual Performance Report 2022 | E1: =+'Cover Page'!$B$33 -> Kemsley Generating Station
A3: Summary of Plant Operations and Maintenance during the reporting year | K3: Notes:
A4: The plant availability for 2022 was comparable with 2021 with slightly increased turbine availability. There was an increase in thermal energy produced delivering more steam energy to D.S. Smith. A reduction in the calorific value of the waste was observed in the second half of the year resulted in an increased throughput compared to 2021. The facility continues to maintain safe and environmentally compliant operations in accordance with the management system and legal requirements. Detailed PPM (planned preventative maintenance) processes, in line with equipment manufacturers recommendations, are in place and managed within the companies CMMS (Computerised Maintenance management System). Three planned maintenance outages were completed successfully and on schedule in 2022. In addition to the routine maintenance tasks and statutory inspections, 170m2 of boiler tubes were exchanged and coated to aid in the reduction of unplanned downtime due to tube leaks and improve plant availability. Legacy defects continue to be managed from the construction phase. | K4: Include summary of key operational and/or mainteanance activity undertaken in the year, such as any major component upgrades and/or replacements
A28: Summary of Residue Handling for the reporting year
A29: The residues produced from the incineration process include Incinerator Bottom Ash (IBA) and Air Pollution Control Residues (APCR). The facility has procedures in place as part of the management system for the handling of such residues. The IBA is sampled and sent to an approved testing laboratory twice a month and for a full hazard analysis once per quarter in accordance with the Environmental Permit. All hazard analysis results have demonstrated the IBA to be non-hazardous. IBA is sent for re-processing at Fortis IBA (Andover), a fully licenced site, where the metals are removed and the IBA is used to produce construction materials. APCR is sampled and tested by the same approved laboratory once per quarter. Due to the inevitable hazardous nature of the APCR it is sent to Augean (Peterborough) where it is treated and landfilled. enfinium continue to investigate opportunities for recycling of this material. All testing of residues in carried out in accordance with the Industrial Emissions Directive and the ESA sampling and testing protocol. | K29: Include in here a summary of residue handling regimes and destinations

Sheet Perf. Form 1
A1: =+'Cover Page'!C39 -> 2022 | B1: Annual Reporting Performance Form 1
A3: =+'Cover Page'!B31 -> Permit EPR/JP3135DK | F3: Operator: | G3: enfinium K3 CHP Operations Limited
A4: Facility: | B4: =+'Cover Page'!B33:I33 -> Kemsley Generating Station | F4: Form: | G4: Performance 1
A6: Reporting Period from: | D6: 01st Jan 2022 | F6: to: | G6: 31st Dec 2022
A8: =+A1 -> 2022 | B8: Annual Reporting of Waste Disposal and Recovery
A9: Waste Description | C9: Disposal Route(s) | E9: Disposal Tonnes | G9: Recovery Tonnes | I9: % / tonne of waste incinerated
A10: 1) Hazardous Wastes
A11: APC Residues - 19 01 07* | C11: D09 | E11: =3063.26+4281.34+4101.58+3832.72 -> 15278.9 | G11: 0 | I11: =IF((E11+G11)>0,(E11+G11)/'Operational Data'!$G$21, "-") -> 0.02818283269
A12: IBA | C12: - | E12: 0 | G12: 0 | I12: =IF((E12+G12)>0,(E12+G12)/'Operational Data'!$G$21, "-") -> -
A13: 16 01 14 (Antifreeze) | C13: D09 | E13: 7 | G13: 0 | I13: =IF((E13+G13)>0,(E13+G13)/'Operational Data'!$G$21, "-") -> 1.291191308e-05
A14: 16 10 01 (Aq. Liquid cont. Haz) | C14: D09 | E14: 134 | G14: 0 | I14: =IF((E14+G14)>0,(E14+G14)/'Operational Data'!$G$21, "-") -> 0.0002471709076
A15: Total Hazardous Waste | E15: =SUM(E11:F14) -> 15419.9 | G15: =SUM(G11:H14) -> 0 | I15: =IF((E15+G15)>0,(E15+G15)/'Operational Data'!$G$21, "-") -> 0.02844291551
A17: 2) Non-Hazardous Wastes
A18: IBA - 19 01 12 | C18: R11 | E18: 0 | G18: =23361.18+33088.96+33624.87+29577 -> 119652.01 | I18: =IF((E18+G18)>0,(E18+G18)/'Operational Data'!$G$21, "-") -> 0.2207051934
A19: 19 12 02 (Ferrous Metal) | C19: R04 | E19: 0 | G19: =285.8+179.46+345.46+345.2 -> 1155.92 | I19: =IF((E19+G19)>0,(E19+G19)/'Operational Data'!$G$21, "-") -> 0.002132162653
A20: 16 10 02 (Aq. Liquid) | C20: D09 | E20: =1191.3+389.7 -> 1581 | G20: 0 | I20: =IF((E20+G20)>0,(E20+G20)/'Operational Data'!$G$21, "-") -> 0.002916247798
A21: 15 01 06 (Mixed Packaging) | C21: R05 | E21: 0 | G21: =0.36+0.68+23.25 -> 24.29 | I21: =IF((E21+G21)>0,(E21+G21)/'Operational Data'!$G$21, "-") -> 4.48043384e-05
A22: 19 12 12 (Other Waste, oversize) | C22: R04 | E22: 0 | G22: 93.08 | I22: =IF((E22+G22)>0,(E22+G22)/'Operational Data'!$G$21, "-") -> 0.0001716915528
A23: 20 01 38 (Wood) | C23: R03 | E23: 0 | G23: =1.2+1.22+1.96+1.34 -> 5.72 | I23: =IF((E23+G23)>0,(E23+G23)/'Operational Data'!$G$21, "-") -> 1.055087755e-05
A24: 20 03 01 (Municipal) | C24: R01 | E24: 0 | G24: =12.42+11.28+2.86+3.68 -> 30.24 | I24: =IF((E24+G24)>0,(E24+G24)/'Operational Data'!$G$21, "-") -> 5.577946452e-05
A25: Total Non-Hazardous Waste | E25: =SUM(E18:F24) -> 1581 | G25: =SUM(G18:H24) -> 120961.26 | I25: =IF((E25+G25)>0,(E25+G25)/'Operational Data'!$G$21, "-") -> 0.22603643
A26: TOTAL WASTE | E26: =+E25+E15 -> 17000.9 | G26: =+G25+G15 -> 120961.26 | I26: =IF((E26+G26)>0,(E26+G26)/'Operational Data'!$G$21, "-") -> 0.2544793456
A28: Operator’s comments :
A33: =+A1 -> 2022 | B33: Annual Reporting of Water and Other Raw Material Usage
A34: Raw Material | E34: Usage | G34: Unit | H34: Specific Usage | J34: Unit
A35: Mains Water | E35: =+'Operational Data'!G44 -> 12841000 | G35: m3 | H35: =IF(E35>0,E35/'Operational Data'!$G$21,"-") -> 23.68598227 | J35: m3/te
A36: Total Water | E36: =+'Operational Data'!G45+'Operational Data'!G44 -> 12841000 | G36: m3 | H36: =IF(E36>0,E36/'Operational Data'!$G$21,"-") -> 23.68598227 | J36: m3/te
A37: Urea / Ammonia | E37: =+'Operational Data'!G47 -> 479743 | G37: kg | H37: =IF(E37>0,E37/'Operational Data'!$G$21,"-") -> 0.8849142741 | J37: kg/te
A38: Activated Carbon | E38: =+'Operational Data'!G48 -> 156502 | G38: kg | H38: =IF(E38>0,E38/'Operational Data'!$G$21,"-") -> 0.2886771745 | J38: kg/te
A39: Lime / hydrated lime / Sodium Bicarb. | E39: =+'Operational Data'!G49 -> 7478000 | G39: kg | H39: =IF(E39>0,E39/'Operational Data'!$G$21,"-") -> 13.79361229 | J39: kg/te
A41: Operator’s comments :
A42: -
A45: =+A33 -> 2022 | B45: Annual Reporting of other performance indicators
A46: Parameter | C46: Results by Line
C47: A1 | D47: A2 | E47: A3 | F47: A4 | G47: A5 | I47: Turbine 1 | J47: Turbine 2
A48: Operating hours for the year, hours | C48: 6973 | D48: 7551 | E48: - | F48: - | G48: - | H48: - | I48: 8301 | J48: -
A49: Number of periods of abnormal operation, qty. | C49: 0 | D49: 0 | E49: - | F49: - | G49: - | H49: - | I49: 0 | J49: -
A50: Cumulative hours of abnormal operation for this year, hours | C50: 0 | D50: 0 | E50: - | F50: - | G50: - | H50: - | I50: 0 | J50: -
A52: Operator’s comments :
A53: K3 facility operates 2 lines (2 boilers and 2 emission points) with 1 common turbine.
A56: Signed: | B56: F. Gormley | E56: Date: | F56: 2023-01-26

Sheet Energy Form 1
A1: =+'Cover Page'!C39 -> 2022 | B1: Annual Reporting of Energy Usage/Export
A3: =+'Cover Page'!B31 -> Permit EPR/JP3135DK | F3: Operator: | G3: enfinium K3 CHP Operations Limited
A4: Facility: | B4: =+'Cover Page'!B33:I33 -> Kemsley Generating Station | F4: Form: | G4: Energy 1
A6: Reporting Period from: | D6: =+'Perf. Form 1'!D6:E6 -> 01st Jan 2022 | F6: to: | G6: =+'Perf. Form 1'!G6:H6 -> 31st Dec 2022
A8: Energy Source | D8: Energy Usage | F8: Unit | G8: Specific Useage (KWh/tonne incinerated
A9: Electricity Produced | D9: =+'Operational Data'!G26 -> 389426 | F9: MWh | G9: =+'Operational Data'!H26 -> 718.3192378
A10: Electricity Imported | D10: =+'Operational Data'!G29 -> 770 | F10: MWh | G10: =+'Operational Data'!H29 -> 1.420310439
A11: Electricity Exported | D11: =+'Operational Data'!G27 -> 343876 | F11: MWh | G11: =+'Operational Data'!H27 -> 634.2995748
A12: Gas Oil | D12: =249.74+122.87+87.44+145.07 -> 605.12 | F12: tonnes | G12: -
A13: Steam/hot water exported | D13: =+'Operational Data'!G32 -> 344078 | F13: GWh | G13: =+'Operational Data'!H32 -> 634.6721757
A17: Operator’s comments :
A18: -
A28: Signed: | B28: F. Gormley | E28: Date: | F28: 2023-01-26

Sheet Operational Data
A1: =+'Cover Page'!$B$29 -> Annual Performance Report 2022 | E1: =+'Cover Page'!$B$33 -> Kemsley Generating Station
A3: Operational Data | K3: Notes:
A4: Plant Size | B4: 657000 | D4: tonnes pa | E4: 55 | F4: MWth | G4: 45 | H4: MWe | K4: ^ - RDF to include SRF
A5: No. of combustion lines | B5: 2 | D5: No. of Turbines: | F5: 1 | K5: ^^ - CHP plants only
K6: 2020 updates include; heat in MWh, water in Litres, NCV in MJ/kg
A7: Waste types received | B7: Unit | C7: Q1 | D7: Q2 | E7: Q3** | F7: Q4 | G7: Year Total | H7: %
A8: Household / Local Authority | B8: tonnes | C8: 72953.08 | D8: 86923.73 | E8: 84856.94 | F8: 76306.36 | G8: =SUM(C8:F8) -> 321040.11 | H8: =IF(G8>0,G8/$G$18,"-") -> 0.5916379276 | K8: Availabiity Definition: 'the availability of a line is to be calculated by the number of hours the line reported Continuously Monitored emission levels to the Regulator through the calendar year divided by the total number of hours in that year. The overall plant availability is calculated as the Mean of all lines in the plant. For clarity this includes periods of Other Than Normal Operating Conditions (OTNOC) and abnormal operation.' Rationale: The primary function of an Energy from Waste facility is the disposal of waste. It follows therefore that the availability of a plant is determined by the period of time a facility spends undertaking this activity.
A9: Commercial & Industrial | C9: 13562.7 | D9: 21992.43 | E9: =20981.56-25.62 -> 20955.94 | F9: 25193.1 | G9: =SUM(C9:F9) -> 81704.17 | H9: 0.1505708611
A10: Hazardous | C10: 0 | D10: 0 | E10: 0 | F10: 0 | G10: 0 | H10: -
A11: Clinical | C11: 0 | D11: 0 | E11: 0 | F11: 0 | G11: 0 | H11: -
A12: Waste wood (biomass) | C12: 0 | D12: 0 | E12: 0 | F12: 0 | G12: 0 | H12: -
A13: Refuse Derived Fuel ^ - H'hold/LA | C13: 0 | D13: 0 | E13: 0 | F13: 0 | G13: =SUM(C13:F13) -> 0 | H13: -
A14: Refuse Derived Fuel ^^ - C&I | C14: 20774.32 | D14: 35924.76 | E14: 44231.82 | F14: 38954.18 | G14: 139885.08 | H14: 0.2577912113
A15: Other [Please specify] | C15: 0 | D15: 0 | E15: 0 | F15: 0 | G15: 0 | H15: -
A16: Other [Please specify] | C16: 0 | D16: 0 | E16: 0 | F16: 0
A17: Other [Please specify] | C17: 0 | D17: 0 | E17: 0 | F17: 0
A18: Total waste received | C18: =SUM(C8:C17) -> 107290.1 | D18: =SUM(D8:D17) -> 144840.92 | E18: =SUM(E8:E17) -> 150044.7 | F18: =SUM(F8:F17) -> 140453.64 | G18: =SUM(G8:G17) -> 542629.36 | H18: 1
A19: Rejected Waste | C19: 0 | D19: 0 | E19: 0 | F19: 0 | G19: =SUM(C19:F19) -> 0 | H19: =IF(G19>0,G19/$G$18,"-") -> -
A20: Unprocessed waste transferred out | C20: 0 | D20: 0 | E20: 0 | F20: 0 | G20: =SUM(C20:F20) -> 0 | H20: =IF(G20>0,G20/$G$18,"-") -> -
A21: Total waste combusted* | C21: 103592 | D21: 148412 | E21: 146338 | F21: 143793 | G21: =SUM(C21:F21) -> 542135 | H21: =IF(G21>0,G21/$G$18,"-") -> 0.9990889546
A22: *Total waste combusted = Total waste processed from midnight readings derived from crane weight data.
A23: **25.62tonnes less than reported in Q3 returns due to a duplicate ticket correction
A25: Energy Useage / Export | B25: Unit | C25: Q1 | D25: Q2 | E25: Q3 | F25: Q4 | G25: Year Total | H25: KWh/te
A26: Power Generated | B26: MWh | C26: 74789 | D26: 107368 | E26: 110790 | F26: 96479 | G26: =SUM(C26:F26) -> 389426 | H26: =IF(G26>0,G26*1000/$G$21,"-") -> 718.3192378
A27: Power Exported | C27: 66031 | D27: 94986 | E27: 97717 | F27: 85142 | G27: =SUM(C27:F27) -> 343876 | H27: =IF(G27>0,G27*1000/$G$21,"-") -> 634.2995748
A28: Power Used on site | C28: =C26-C27+C29 -> 9218 | D28: =D26-D27+D29 -> 12397 | E28: 13079 | F28: 11626 | G28: =SUM(C28:F28) -> 46320 | H28: =IF(G28>0,G28*1000/$G$21,"-") -> 85.43997344
A29: Power Imported | C29: 460 | D29: 15 | E29: 6 | F29: 289 | G29: 770 | H29: =IF(G29>0,G29*1000/$G$21,"-") -> 1.420310439
A30: Parasitic Load | B30: % | C30: =IF(C26>0,1-C27/(C26+C29),"-") -> 0.1224999668 | D30: =IF(D26>0,1-D27/(D26+D29),"-") -> 0.1154465791 | E30: =IF(E26>0,1-E27/(E26+E29),"-") -> 0.1180457778 | F30: =IF(F26>0,1-F27/(F26+F29),"-") -> 0.1201430225 | G30: =IF(G26>0,1-G27/(G26+G29),"-") -> 0.1187095716 | H30: -
A31: Thermal Energy Produced ** | B31: MWh | C31: 297007 | D31: 439623 | E31: 438805 | F31: 386349 | G31: =SUM(C31:F31) -> 1561784 | H31: =IF(G31>0,G31*1000/$G$21,"-") -> 2880.802752
A32: Thermal Energy Exported ** | C32: 48298 | D32: 108537 | E32: 101432 | F32: 85811 | G32: =SUM(C32:F32) -> 344078 | H32: =IF(G32>0,G32*1000/$G$21,"-") -> 634.6721757
A33: R1 value (if applicable) | C33: 0.82 | G33: - | H33: -
A35: Waste Disposal & Recovery | B35: Unit | C35: Q1 | D35: Q2 | E35: Q3 | F35: Q4 | G35: Year Total | H35: % inputs
A36: APC Residues - produced | B36: tonnes | C36: 3063 | D36: 4281.34 | E36: 4082 | F36: 3797 | G36: =SUM(C36:F36) -> 15223.34 | H36: =IF(G36>0,G36/$G$21,"-") -> 0.02808034899
A37: IBA - produced | C37: 23361 | D37: 33088.96 | E37: 33575 | F37: 29582 | G37: 119606.96 | H37: =IF(G37>0,G37/$G$21,"-") -> 0.220622096
A38: Metals recycling | C38: 285.8 | D38: 179.46 | E38: 345.46 | F38: 345.2 | G38: =SUM(C38:F38) -> 1155.92 | H38: 0.002132162653
A39: Other | C39: 0 | D39: 0 | E39: 0 | F39: 0 | G39: =SUM(C39:F39) -> 0 | H39: -
A40: Other | C40: 0 | D40: 0 | E40: 0 | F40: 0 | G40: 0 | H40: -
A41: Other | C41: 0 | D41: 0 | E41: 0 | F41: 0 | G41: 0 | H41: -
A43: Raw Material Usage | B43: Unit | C43: Q1 | D43: Q2 | E43: Q3 | F43: Q4 | G43: Year Total | H43: kg or Ltr /te
A44: Mains Water | B44: ltrs | C44: 2204000 | D44: 3200000 | E44: 4342000 | F44: 3095000 | G44: =SUM(C44:F44) -> 12841000 | H44: =IF(G44>0,G44/$G$21,"-") -> 23.68598227
A45: Other Water | B45: ltrs | C45: 0 | D45: 0 | E45: 0 | G45: 0 | H45: =IF(G45>0,G45/$G$21,"-") -> -
A46: Ammonia | B46: kgs | C46: 0 | D46: 0 | E46: 0 | G46: 0 | H46: -
A47: Urea | B47: kgs | C47: 92610 | D47: 133170 | E47: 136290 | F47: 117673 | G47: =SUM(C47:F47) -> 479743 | H47: 0.8849142741
A48: Activated Carbon | B48: kgs | C48: 30672 | D48: 43302 | E48: 42153 | F48: 40375 | G48: 156502 | H48: 0.2886771745
A49: Lime / hydrated lime | B49: kgs | C49: 1464000 | D49: 2208000 | E49: 2101000 | F49: 1705000 | G49: 7478000 | H49: 13.79361229
A50: Fuel oil | B50: ltrs | C50: 304563 | D50: 149844 | E50: 106639 | F50: 176693 | G50: 737739 | H50: 1.360803121
A51: Gas | B51: cf | C51: 0 | D51: 0 | E51: 0 | F51: 0 | G51: 0
A52: Other | C52: 0 | D52: 0 | E52: 0 | F52: 0 | G52: 0
A54: Summary | B54: Line/Unit | C54: Q1 | D54: Q2 | E54: Q3 | F54: Q4 | G54: Year Total | J54: Hrs in year
A55: Availability of waste combustion by line, hrs | B55: 1 | C55: 1393 | D55: 2006.58 | E55: 1980 | F55: 1982 | G55: =SUM(C55:F55) -> 7361.58 | H55: - | J55: 8760
B56: 2 | C56: 1549 | D56: 2175.18 | E56: 2119 | F56: 1708 | G56: 7551.18 | H56: -
A57: Overall Availability, mean avg. of all lines, hrs, hrs | B57: - | C57: =AVERAGE(C55:C56) -> 1471 | D57: =AVERAGE(D55:D56) -> 2090.88 | E57: 2049.5 | F57: 1845 | G57: =AVERAGE(G55:G56) -> 7456.38 | H57: 0.851
A58: Hours of turbine operations, hrs | B58: 1 | C58: 1857 | D58: 2179 | E58: 2207 | F58: 2058 | G58: =SUM(C58:F58) -> 8301 | H58: 0.948
A59: Hours of heat / steam export | B59: - | C59: - | D59: - | E59: - | F59: - | G59: 8033 | H59: -
A60: Net Calorific Value of waste* | B60: MJ/kg | C60: 10620 | D60: 10820 | E60: 10743 | F60: 9768 | G60: 10370 | H60: - | I60: *Average per quarter and year total NCV
A61: Abnormal Events | B61: qty. | C61: 0 | D61: 0 | E61: 0 | F61: 0 | G61: 0 | H61: =IF(G61>0,"yes","no") -> no
A62: Abnormal operation | B62: hours | C62: 0 | D62: 0 | E62: 0 | F62: 0 | G62: 0 | H62: =+(G62)/J55 -> 0
A63: Permit Breaches | B63: qty. | C63: 0 | D63: 1 | E63: 0 | F63: 0 | G63: 1 | H63: =IF(G63>0,"yes","no") -> yes

Sheet Permit Compliance
A1: =+'Cover Page'!$B$29 -> Annual Performance Report 2022 | E1: =+'Cover Page'!$B$33 -> Kemsley Generating Station
A3: Summary of Permit Compliance
A4: Compliance with permit limits for continuously monitored pollutants
A6: The plant met its emission limits as shown in the table below:
A7: Substance | C7: Percentage time compliant during operation | L7: Notes:
C8: Half-hourly limit | F8: Daily limit | L8: Report to 2 decimal places, i.e. xx.xx% Please provide a brief summary of each notification or non-compliance in the table (rather than just referring to notifications that were sent to the Regulator).
A9: Particulates | C9: 1 | F9: 1
A10: Oxides of nitrogen | C10: 1 | F10: 1
A11: Sulphur dioxide | C11: 1 | F11: 1
A12: Carbon monoxide | C12: 100% 95% of 10-min averages | F12: 1
A13: Total organic carbon | C13: 1 | F13: 1
A14: Hydrogen chloride | C14: 1 | F14: 1
A15: Hydrogen fluoride | C15: 1 | F15: 1
A16: Overall | C16: 1 | F16: 1
A18: Summary of any notifications or non-compliances under the permit
A19: Date | B19: Summary of notification or non-compliance [including Line/Reference] | E19: Reason | H19: Measures taken to prevent reoccurrence
A20: 09.02.2022 | B20: Schedual 5 (a) notification for steam release to atmosphe from expansion flaps. | E20: A tube leak on Line 1 led to an increase in boiler pressure tripping the boiler. As a result of the increase in chamber pressure two of the expansion flaps on the boiler roof opened to relieve the pressure, releasing steam to atmosphere. | H20: The root cause was the tube leak which is an unplanned, emergency event. The expansion flaps reales by design as an an emergency safety feature in order to reduce chamber pressure. In this instance the release could not be prevented without compromising safety.
A21: 11.05.22 | B21: Schedual 5 (b) notification for exceedance of the ELV for Dioxins. | E21: During the round of monitoring on 1 April 2022, Dioxins and Furans exceeded the emission limit value, no conclusive reason for the elevated concentration could be identified by enfinium or the testing laboratory. All other required parameters were monitored in April and were below the emissions limit values (ELVs) specified in the permit. | H21: The result was an anomoly for the facility with no similarly elevated concentrations during any previous monitoring campaigns being recorded. A retest was conducted demonstrating normal dioxin levels for the facility below the ELV.
A22: 16.09.22 | B22: Schedual 5 (a) notification for steam release to atmosphe from expansion flaps. | E22: A tube leak on Line 1 led to an increase in boiler pressure tripping the boiler. As a result of the increase in chamber pressure two of the expansion flaps on the boiler roof opened to relieve the pressure, releasing steam to atmosphere. | H22: The root cause was the tube leak which is an unplanned, emergency event. The expansion flaps reales by design as an an emergency safety feature in order to reduce chamber pressure. In this instance the release could not be prevented without compromising safety.
A23: 10.10.22 | B23: Schedual 5 (a) notification for steam release to atmosphe from expansion flaps. | E23: Pressurised containers in the system from the waste resulted in a sudden increase in boiler pressure causing one (of three) installed expansion flaps on the boiler roof to open (emergency safety feature) to relieve the pressure. | H23: Fuel suppliers alerted with a stern message and reminded of what constitutes unacceptable waste. Incoming waste closely monitored with increased waste inspections. Staff will be to increase awareness of retrieving pressurised containers from the waste before they enter the system. The opening of the expansion flaps is an emergency safety feature and hence the opening of these cannot be predicted or fully prevented in the future.
A24: 22.12.2022 | B24: Schedual 5 (a) notification for steam release to atmosphe from expansion flaps. | E24: A tube leak on Line 1 led to an increase in boiler pressure tripping the boiler. As a result of the increase in chamber pressure two of the expansion flaps on the boiler roof opened to relieve the pressure, releasing steam to atmosphere. | H24: The root cause was the tube leak which is an unplanned, emergency event. The expansion flaps reales by design as an an emergency safety feature in order to reduce chamber pressure. In this instance the release could not be prevented without compromising safety.
A26: Summary of any complaints received and actions to taken to resolve them.
A27: Date | B27: Summary of complaint [including Line/Reference] | E27: Reason * | H27: Measures taken to prevent reoccurrence
A28: No complaits received in 2022
E33: * including whether substantiated by the operator or the EA

Sheet Improvements
A1: =+'Cover Page'!$B$29 -> Annual Performance Report 2022 | E1: =+'Cover Page'!$B$33 -> Kemsley Generating Station
A3: Summary of Plant Improvements
A5: Summary of any efficiency improvements that have been completed within the year.
A6: Modifications have been made to the ash discharging system allowing for the safe clearing of blockages without the need to interrupt boiler operations. The resulting benefit of the modifications is reduced downtime, lower diesel oil consumption and improved efficiency in running the plant. During the planned outages a programme of Inconel coating application to boiler tubes has been carried out. This coating increases the resistance to corrosion and reducing downtime caused by tubes leaks. This in turn increases the availability of the plant with less downtime and re-heating of the plant meaning more efficient operations. The Kemsley facility continues to operate with an approved R1 Status.
A16: Summary of any permit improvement conditions that have been completed within the year and the resulting environmental benefits.
A17: Summary the IC status: - IC1 - Environmental Management System - Submitted 15/07/2021, Discharged 22/07/2021. - IC2 - Commissioning Report - Submitted 04/01/2021, Discharged 02/11/2021. - IC3 - Performance and Optimisation of the SNCR System - Submitted 21/12/2021, EA requested further information and it has been agreed this will be submitted as part of IC8 within the new permit. - IC4 - Air dispersion Modeling - Submitted 08/10/2021, Awaiting response from EA. - IC5 - T2S (Residence Time) Testing Report - Submittted 04/12/2020, Discharged 06/08/2021. - IC6 - Review of Energy Efficiency Measures - Submitted 25/08/2021, Awaiting EA Response. - IC7 - Incineration of Sludges - Submitted 25/08/2021, Discharged 31/10/2022. These submissions provide evidence that the plant has been installed and operated as per design/ permit requirements.
A27: Summary of any changes to the plant or operating techniques which required a variation to the permit and a summary of the resulting environmental impact.
A28: No changes to plant or operating techniques requiring a variation application in 2022.
A38: Summary of any other improvements made to the plant or planned to be made and a summary of the resulting environmental benefits.
A39: A second standby Continuous Emissions Measurement System (CEMS) has been installed meaning the facility now has four CEMS, a duty and a standby on each line enabling 100% redundancy. This will provide full coverage ensuring no data is lost during malfunction of duty CEMS on either combustion lines. All required testing and trails in accordance with the BREF and new permit is underway and on track for completion by the set dates.

Sheet Public Liasion
A1: =+'Cover Page'!$B$29 -> Annual Performance Report 2022 | E1: =+'Cover Page'!$B$33 -> Kemsley Generating Station
A3: Details of Public & Stakeholder Liaison
A5: Summary of events held during the reporting year.
A6: Date | C6: Description
A7: Monthly | C7: Project meeting with local businesses (including DS Smith, E.On, FGS, MVV, McLaren Dalcour, Swale Local Council, Kent Council, Sea Terminals Ridham and other local businesses).
A9: Quarterly | C9: Environmental meeting with DS Smith and E.On.
A12: List of events planned for next year
A13: Date | C13: Description
A14: Monthly | C14: Project meeting with local businesses (including DS Smith, E.On, FGS, MVV, McLaren Dalcour, Swale Local Council, Kent Council, Sea Terminals Ridham and other local businesses).
A16: Quarterly | C16: Environmental meeting with DS Smith and E.On.
A19: If you wish to be involved in the public liaison programme, please contact: enfinium Kemsley (01795 685 740)

Sheet CO2 N2O
A1: =+'[1]Cover Page'!$B$29 -> Annual Performance Report 2022 | C1: =+'[1]Cover Page'!$B$33 -> 0
A3: Carbon dioxide emissions and biogenic content of waste inputs | E3: Notes:
A5: Carbon dioxide emissions (all types of plant)
A6: Annual mass of carbon dioxide released | B6: 566,353 tonnes
A7: Annual mass of carbon dioxide released per tonne of waste burned | B7: 1.04 tonnes
A8: Annual mass of carbon dioxide released per MWh of energy exported | B8: 0.84 tonnes
A9: Description of how annual carbon dioxide mass emission has been calculated | B9: Mesured using calibrated CEMS | E9: Note 1: Where available, data from CO2 CEMS should be used. Otherwise, where no CEMS data is available, a suitable emissions factor should be used based on the tonnage of waste burned e.g.0.992 tCO2/t waste as per Tolvik report 2021, or other justified emissions factor - refer to embedded Environment Agency guidance note above or updated version for suitable descriptive text.
A11: Nitrous oxide emissions (only plants which use ammonia or urea to abate NOx emissions)
A12: Annual mass emissions of nitrous oxide | B12: 34.27 tonnes
A13: Description of how annual nitrous oxide mass emission has been calculated | B13: Mesured using calibrated CEMS | E13: Note 2: Where available, data from N2O CEMS should be used, or if no CEMS data is available, from periodic monitoring. Otherwise, a suitable emissions factor should be used based on the tonnage of waste burned e.g. 0.0981 kgN20/t waste as per 2021 Pollution Inventory data for plants with urea-based SNCR - refer to embedded Environment Agency guidance note above or updated version for suitable descriptive text.
A14: Total annual carbon dioxide and nitrous oxide emissions as carbon dioxide equivalent (whereby 1 t nitrous oxide is equivalent to 298 t carbon dioxide) | B14: 576,565 tonnes CO2e
A16: Biogenic fraction of the waste and biogenic CO2 emissions (only plants burning residual municipal waste, refuse derived fuel or solid recovered fuel)
A17: Yearly average biogenic percentage of the waste by net calorific value (NCV) | B17: 0.428
A18: Description of how biogenic NCV percentage has been calculated or estimated | B18: Bioma | E18: Note 3: Where available, data from waste sampling should be used; otherwise, an estimated figure with justification can be used, or a figure assumed on the basis of a national average e.g. 2017 WRAP data for residual waste of 51.8% biogenic energy content - refer to embedded Environment Agency guidance note above or updated version for suitable descriptive text, quoting standards where relevant.
A19: Percentage of total carbon dioxide emissions arising from biogenic waste | B19: 0.42
A20: Description of how percentage biogenic carbon dioxide emissions have been calculated | B20: Bioma | E20: Note 4: Examples include direct measurement via C14 method or BIOMA software - refer to embedded Environment Agency guidance note above or updated version for suitable descriptive text, quoting standards where relevant. Otherwise, as an approximation (and in lieu of any more accurate metrics which may be developed in future), the measured or estimated biogenic fraction by net calorific value can be assumed to be the same as the biogenic CO2 fraction of the total CO2 emissions from the plant.
A22: Comments:

Sheet Residue Quality
A1: =+'Cover Page'!$B$29 -> Annual Performance Report 2022 | E1: =+'Cover Page'!$B$33 -> Kemsley Generating Station
A3: Residue Quality Monitoring Requirements
A5: Summary of monitoring undertaken and compliance
A6: The residues produced from the process include Incinerator Bottom Ash (IBA) and Air Pollution Control Residues (APCR). The IBA is sampled and sent to an approved testing laboratory twice a month for analysis and both the IBA and APCR are sent for a full hazard analysis once per quarter. All hazard analysis results have demonstrated the IBA to be non-hazardous, APCR is hazardous by nature and disposed of accordingly. All testing of residues in carried out in accordance with the Industrial Emissions Directive and the ESA sampling and testing protocol.
A13: Commentary on any specific events
A14: Date & Event | C14: Description
A15: 01/01/2022 - 31/12/2022 | C15: No specific events, all IBA for 2022 was classed as non-hazardous.
A19: Residue Quality Monitoring Results
A20: Parameter (unit) | C20: Limit | D20: Normal Operation
D21: Bottom ash | F21: APC Residues
A22: Loss on Ignition (average %) | C22: <5% | D22: 2022 Average = 2%
A23: Total Organic Carbon (average %) | C23: <3% | D23: 2022 Average = 0.57%
A24: No. of Assessments Undertaken | C24: --- | D24: 24 | F24: 4
A25: No. of Hazardous Results | C25: --- | D25: 0
A27: Comments :
A28: LOI and TOC for the IBA are an average of the 24 samples taken in 2022, no samples exceeded the set limits within the Environmental Permit. All samples were sent for analysis at a fully accredited laboratory.

Sheet Water
A1: =+'Cover Page'!$B$29 -> Annual Performance Report 2022 | E1: =+'Cover Page'!$B$33 -> Kemsley Generating Station
A3: Emissions to Water
A5: Summary of monitoring undertaken and compliance
A6: Water balance is achived by a attenuation pond for rainwater with a closed penstock which can emit to the Swale. Regular visual inspections to check for hydrocarbons and particulate are conducted. The penstock requires manual operation and would only be operated following heavy rainfall to prevent flooding, in which case additional inspections and pH testing would be conducted.
A9: Commentary on any specific events
A10: Date & Event | C10: Description
A11: - | C11: No events in 2022.
A14: Emissions to Water / Sewer
A15: Parameter | D15: Monitoring Frequency | F15: Limit | G15: Target | H15: Max. | I15: Average
A16: None set in any permits or consents

Sheet Air (periodic)
A1: =+'Cover Page'!$B$29 -> Annual Performance Report 2022 | E1: =+'Cover Page'!$B$33 -> Kemsley Generating Station
A3: Emissions to Air (Periodically Monitored)
A5: Summary of monitoring undertaken, standards used and compliance | O5: Notes:
A6: Results are below set limits where applicable and comparable with the results from 2022, with the exception of 1 untypical dioxin result (see comments). Sampling and analysis was carried out by MCERTS certified contractors in accordance with the appropriate standards. | O6: Template may require adjustment for any bespoke monitoring requirements of permit.
A9: Results of emissions to air that are periodically monitored
A10: Substance | C10: Ref. Period | D10: Emission Limit Value | F10: Average | O10: User to add additional tables as necessary, depending on whether quarterly or bi-annual reporting is required for the compliance year
F11: L1 Q1 | G11: L1 Q3 | H11: L1 Annual Average | I11: L2 Q1 | J11: L2 Q3 | K11: L2 Annual Average | L11: Both Line Annual Average
A12: Hydrogen fluoride | C12: 1 hr | D12: 2 mg/m3 | F12: 0.024 | G12: 0.026 | H12: =AVERAGE(F12:G12) -> 0.025 | I12: 0.025 | J12: 0.029 | K12: =AVERAGE(I12:J12) -> 0.027 | L12: =AVERAGE(F12:G12,I12:J12) -> 0.026
A13: Cd and Th and their compounds | C13: 6-8hrs | D13: 0.05 mg/m3 | F13: 0.00084 | G13: 0.001 | H13: =AVERAGE(F13:G13) -> 0.00092 | I13: 0.00066 | J13: 0.00092 | K13: =AVERAGE(I13:J13) -> 0.00079 | L13: =AVERAGE(F13:G13,I13:J13) -> 0.000855
A14: Hg and its compounds | C14: 6-8hrs | D14: 0.05 mg/m3 | F14: 0.032 | G14: 0.0047 | H14: 0.01835 | I14: 0.0014 | J14: 0.00061 | K14: 0.001005 | L14: 0.0096775
A15: Sb, As, Pb, Cr, Co, Cu, Mn, Ni, V and their compounds | C15: 6-8hrs | D15: 0.5 mg/m3 | F15: 0.016 | G15: 0.012 | H15: 0.014 | I15: 0.024 | J15: 0.0063 | K15: 0.01515 | L15: 0.014575
A16: Dioxins & Furans (I-TEQ) | C16: 6-8hrs | D16: 0.1 ng/m3 | F16: 0.00045 | G16: 0.005 | H16: 0.002725 | I16: 0.0085 | J16: 0.0035 | K16: 0.006 | L16: 0.0043625 | M16: *see comment
A17: PCBs (WHO-TEQ Humans / Mammals) | C17: 6-8hrs | D17: None set ng/m3 | F17: 0.00019 | G17: 0.0006 | H17: 0.000395 | I17: 0.24 | J17: 0.00059 | K17: 0.120295 | L17: 0.060345
A18: PCBs (WHO-TEQ Fish) | C18: 6-8hrs | D18: None set ng/m3 | F18: 3.6e-05 | G18: 2.8e-05 | H18: 3.2e-05 | I18: 0.01 | J18: 2.9e-05 | K18: 0.0050145 | L18: 0.00252325
A19: PCBs (WHO-TEQ Birds) | C19: 6-8hrs | D19: None set ng/m3 | F19: 0.0063 | G19: 0.0012 | H19: 0.00375 | I19: 0.29 | J19: 0.0011 | K19: 0.14555 | L19: 0.07465
A20: Dioxins & Furans (WHO-TEQ Humans / Mammals) | C20: 6-8hrs | D20: None set ng/m3 | F20: 0.0025 | G20: 0.0049 | H20: 0.0037 | I20: 0.3 | J20: 0.0033 | K20: 0.15165 | L20: 0.077675
A21: Dioxins & Furans (WHO-TEQ Fish) | C21: 6-8hrs | D21: None set ng/m3 | F21: 0.0027 | G21: 0.0056 | H21: 0.00415 | I21: 1.7 | J21: 0.0037 | K21: 0.85185 | L21: 0.428
A22: Dioxins & Furans (WHO-TEQ Birds) | C22: 6-8hrs | D22: None set ng/m3 | F22: 0.0048 | G22: 0.0086 | H22: 0.0067 | I22: 2.5 | J22: 0.0062 | K22: 1.2531 | L22: 0.6299
A23: Anthanthrene | C23: 6-8hrs | D23: None set µg/m3 | F23: 0.001 | G23: 0.0014 | H23: 0.0012 | I23: 0.00051 | J23: 0.0014 | K23: 0.000955 | L23: 0.0010775
A24: Benzo(a)anthracene | C24: 6-8hrs | D24: None set µg/m3 | F24: 0.037 | G24: 0.0014 | H24: 0.0192 | I24: 0.087 | J24: 0.0014 | K24: 0.0442 | L24: 0.0317
A25: Benzo(a)pyrene | C25: 6-8hrs | D25: None set µg/m3 | F25: 0.001 | G25: 0.0014 | H25: 0.0012 | I25: 0.025 | J25: 0.0014 | K25: 0.0132 | L25: 0.0072
A26: Benzo(b)fluoranthene | C26: 6-8hrs | D26: None set µg/m3 | F26: 0.035 | G26: 0.0014 | H26: 0.0182 | I26: 0.091 | J26: 0.0014 | K26: 0.0462 | L26: 0.0322
A27: Benzo(b)naptho(2,1-d) thiophene | C27: 6-8hrs | D27: None set µg/m3 | F27: 0.005 | G27: 0.0014 | H27: 0.0032 | I27: 0.0093 | J27: 0.0014 | K27: 0.00535 | L27: 0.004275
A28: Benzo(c)phenanthrene | C28: 6-8hrs | D28: None set µg/m3 | F28: 0.03 | G28: 0.0014 | H28: 0.0157 | I28: 0.02 | J28: 0.0014 | K28: 0.0107 | L28: 0.0132
A29: Benzo(ghi)perylene | C29: 6-8hrs | D29: None set µg/m3 | F29: 0.002 | G29: 0.0014 | H29: 0.0017 | I29: 0.023 | J29: 0.0014 | K29: 0.0122 | L29: 0.00695
A30: Benzo(k)fluoranthene | C30: 6-8hrs | D30: None set µg/m3 | F30: 0.008 | G30: 0.0014 | H30: 0.0047 | I30: 0.04 | J30: 0.0014 | K30: 0.0207 | L30: 0.0127
A31: Cholanthrene | C31: 6-8hrs | D31: None set µg/m3 | F31: 0.001 | G31: 0.0014 | H31: 0.0012 | I31: 0.00051 | J31: 0.0014 | K31: 0.000955 | L31: 0.0010775
A32: Chrysene | C32: 6-8hrs | D32: None set µg/m3 | F32: 0.142 | G32: 0.0014 | H32: 0.0717 | I32: 0.12 | J32: 0.0014 | K32: 0.0607 | L32: 0.0662
A33: Cyclopenta(cd)pyrene | C33: 6-8hrs | D33: None set µg/m3 | F33: 0.001 | G33: 0.0014 | H33: 0.0012 | I33: 0.00051 | J33: 0.0014 | K33: 0.000955 | L33: 0.0010775
A34: Dibenzo(ai)pyrene | C34: 6-8hrs | D34: None set µg/m3 | F34: 0.001 | G34: 0.0014 | H34: 0.0012 | I34: 0.00051 | J34: 0.0014 | K34: 0.000955 | L34: 0.0010775
A35: Dibenzo(ah)anthracene | C35: 6-8hrs | D35: None set µg/m3 | F35: 0.001 | G35: 0.0014 | H35: 0.0012 | I35: 0.0047 | J35: 0.0014 | K35: 0.00305 | L35: 0.002125
A36: Fluoranthene | C36: 6-8hrs | D36: None set µg/m3 | F36: 0.961 | G36: 0.011 | H36: 0.486 | I36: 0.23 | J36: 0.014 | K36: 0.122 | L36: 0.304
A37: Indeno(123-cd) pyrene | C37: 6-8hrs | D37: None set µg/m3 | F37: 0.002 | G37: 0.0014 | H37: 0.0017 | I37: 0.028 | J37: 0.0014 | K37: 0.0147 | L37: 0.0082
A38: Naphthalene | C38: 6-8hrs | D38: None set µg/m3 | F38: 3.9 | G38: 0.19 | H38: 2.045 | I38: 0.068 | J38: 0.051 | K38: 0.0595 | L38: 1.05225
A39: Comments :
A40: *Dioxin retest result used in above figures (in blue). The original result of 1.6ng/m3 was not typical for the facility and no route cause could be indentified by the facility or test laboratory. This was reported, investigated and then scored by the Environment Agency in CAR form JP3135DK/0439957.

Sheet Air (CEMS)
A1: =+'Cover Page'!$B$29 -> Annual Performance Report 2022 | I1: =+'Cover Page'!$B$33 -> Kemsley Generating Station
A3: Emissions to Air (continously monitored)
P4: Notes:
A5: Summary of monitoring undertaken, standards used and compliance | P5: Template may require adjustment for any bespoke monitoring requirements of permit
A6: For 2022 the facility achieve 100% compliance with the limits set in the Environmental Permit for all continiuously monitored determinands. HCl, SO2, NOx, TOC and CO all have limits set out in the Environmental Permit; these determinands are continuously monitored by CEMS's in compliance with EN 14181. NH3, O2, CO2 and Water Vapour and are also continuously monitored by the CEMS's. All instruments are QAL1 compliant and undergo annual checks either in the form of a QAL2 or an Annual Surveillance Test compliant with the requirements of EN 14181. | P6: Report to 2 decimal places, i.e. xx.xx%
A11: Results of emissions to air that are continuously monitored (maximum and average values for each line)
A12: Substance | B12: Reference Period | C12: Emission Limit Value | D12: A1 | F12: A2 | H12: A3 | J12: A4 | L12: A5
D13: Max. | E13: Avg. | F13: Max. | G13: Avg. | H13: Max. | I13: Avg. | J13: Max. | K13: Avg. | L13: Max. | M13: Avg.
A14: Oxides of nitrogen | B14: Daily mean | C14: 200 mg/m3 | D14: =NOx!O19 -> 179.38 | E14: =NOx!N19 -> 175.3183333 | F14: =NOx!O34 -> 185.24 | G14: =NOx!N34 -> 175.37 | H14: - | I14: - | J14: - | K14: - | L14: - | M14: -
B15: ½ hourly mean | C15: 400 mg/m3 | D15: =NOx!M19 -> 237.35 | E15: =NOx!L19 -> 175.31 | F15: =NOx!M34 -> 258.68 | G15: =NOx!L34 -> 175.3683333 | H15: - | I15: - | J15: - | K15: - | L15: - | M15: -
A16: Particulates | B16: Daily mean | C16: 10 mg/m3 | D16: =Particulates!O19 -> 0.14 | E16: =Particulates!N19 -> 0.0775 | F16: =Particulates!O34 -> 1.18 | G16: =Particulates!N34 -> 0.3133333333 | H16: - | I16: - | J16: - | K16: - | L16: - | M16: -
B17: ½ hourly mean | C17: 30 mg/m3 | D17: =Particulates!M19 -> 0.44 | E17: =Particulates!L19 -> 0.07666666667 | F17: =Particulates!M34 -> 3.91 | G17: =Particulates!L34 -> 0.3125 | H17: - | I17: - | J17: - | K17: - | L17: - | M17: -
A18: Total Organic Carbon | B18: Daily mean | C18: 10 mg/m3 | D18: =TOC!O19 -> 0.34 | E18: =TOC!N19 -> 0.2 | F18: =TOC!O34 -> 0.35 | G18: =TOC!N34 -> 0.1108333333 | H18: - | I18: - | J18: - | K18: - | L18: - | M18: -
B19: ½ hourly mean | C19: 20 mg/m3 | D19: =TOC!M19 -> 3.15 | E19: =TOC!L19 -> 0.2075 | F19: =TOC!M34 -> 5.81 | G19: =TOC!L34 -> 0.1116666667 | H19: - | I19: - | J19: - | K19: - | L19: - | M19: -
A20: Hydrogen chloride | B20: Daily mean | C20: 10 mg/m3 | D20: =HCl!O19 -> 7.62 | E20: =HCl!N19 -> 4.123333333 | F20: =HCl!O34 -> 5.07 | G20: =HCl!M34 -> 13.06 | H20: - | I20: - | J20: - | K20: - | L20: - | M20: -
B21: ½ hourly mean | C21: 60 mg/m3 | D21: =HCl!M19 -> 13.05 | E21: =HCl!L19 -> 4.0775 | F21: =HCl!N34 -> 2.715833333 | G21: =HCl!L34 -> 2.7175 | H21: - | I21: - | J21: - | K21: - | L21: - | M21: -
A22: Sulphur dioxide | B22: Daily mean | C22: 50 mg/m3 | D22: ='SO2'!O19 -> 23.83 | E22: ='SO2'!N19 -> 2.970833333 | F22: ='SO2'!O34 -> 17.59 | G22: ='SO2'!N34 -> 3.070833333 | H22: - | I22: - | J22: - | K22: - | L22: - | M22: -
B23: ½ hourly mean | C23: 200 mg/m3 | D23: ='SO2'!M19 -> 93.04 | E23: ='SO2'!L19 -> 3.154166667 | F23: ='SO2'!M34 -> 97.55 | G23: ='SO2'!L34 -> 3.093333333 | H23: - | I23: - | J23: - | K23: - | L23: - | M23: -
A24: Carbon monoxide | B24: Daily mean | C24: 50 mg/m3 | D24: ='CO 95% 10 min'!Q19 -> 10.54 | E24: ='CO 95% 10 min'!P19 -> 4.2125 | F24: ='CO 95% 10 min'!Q34 -> 18.65 | G24: ='CO 95% 10 min'!O34 -> 1105.53 | H24: - | I24: - | J24: - | K24: - | L24: - | M24: -
B25: 95%ile 10-min avg * | C25: 150 mg/m3 * | D25: ='CO 95% 10 min'!O19 -> 605.06 | E25: ='CO 95% 10 min'!M19 -> 10.12333333 | F25: ='CO 95% 10 min'!P34 -> 4.084166667 | G25: ='CO 95% 10 min'!M34 -> 19.23083333 | H25: - | I25: - | J25: - | K25: - | L25: - | M25: -
A26: Ammonia | B26: Daily mean | C26: No limit set | D26: ='NH3'!O19 -> 2.04 | E26: ='NH3'!N19 -> 0.6116666667 | F26: ='NH3'!O34 -> 0.97 | G26: ='NH3'!N34 -> 0.3233333333 | H26: - | I26: - | J26: - | K26: - | L26: - | M26: -
A27: * = delete or amend as appropriate
A28: Comments :
A29: K3 facility operates 2 lines (2 boilers and 2 emission points) with 1 common turbine.

Sheet HCl
A1: =+'Cover Page'!$B$29 -> Annual Performance Report 2022 | E1: =+'Cover Page'!$B$33 -> Kemsley Generating Station
A3: Monitoring of Hydrogen Chloride emissions | D3: Whole Installation | G3: See Notes in Cell Q3 | J3: =+A3 -> Monitoring of Hydrogen Chloride emissions | N3: Per Combustion Line | Q3: Notes:
Q4: User to add logic to complete Whole installation, Table A5:G18. From the data in Per Combustion Line, Table J6:O79, subject to No. of lines installed
A5: mg/Nm3 | B5: 1/2 Hourly Reference Periods | E5: Daily Reference Periods
A6: =+'Cover Page'!C39 -> 2022 | B6: 1/2 hourly HCl ELV | C6: Monthly 1/2 hourly mean | D6: Highest 1/2 hourly maximum | E6: Daily HCl ELV | F6: Monthly daily mean | G6: Highest daily maximum | J6: =+A6 -> 2022 | K6: mg/Nm3 | L6: Monthly 1/2 hourly mean | M6: Monthly 1/2 hourly maximum | N6: Monthly daily mean | O6: Monthly daily maximum
A7: Jan | B7: 60 | C7: 3 | D7: 10.44 | E7: 10 | F7: 2.98 | G7: 5.2 | J7: A1 | K7: Jan | L7: 3.61 | M7: 10.44 | N7: 3.59 | O7: 5.2
A8: Feb | B8: 60 | C8: 3.53 | D8: 12.27 | E8: 10 | F8: 3.54 | G8: 6.71 | K8: Feb | L8: 4.4 | M8: 12.27 | N8: 4.48 | O8: 6.71
A9: Mar | B9: 60 | C9: 2.8 | D9: 8.23 | E9: 10 | F9: 2.79 | G9: 5.9 | K9: Mar | L9: 4.33 | M9: 8.23 | N9: 4.43 | O9: 5.9 | Q9: Whole Installation table A5:G18:
A10: Apr | B10: 60 | C10: 2.83 | D10: 10.83 | E10: 10 | F10: 2.83 | G10: 5.53 | K10: Apr | L10: 3.4 | M10: 10.83 | N10: 3.42 | O10: 5.53 | Q10: Mean: for 1/2 hourly and daily periods calculate mean of values across all operational combustion lines for the month
A11: May | B11: 60 | C11: 3.02 | D11: 10.79 | E11: 10 | F11: 3.02 | G11: 4.26 | K11: May | L11: 3.36 | M11: 10.79 | N11: 3.38 | O11: 4.26
A12: Jun | B12: 60 | C12: 3.45 | D12: 12.26 | E12: 10 | F12: 3.45 | G12: 6.37 | K12: Jun | L12: 4.13 | M12: 12.26 | N12: 4.13 | O12: 6.37
A13: Jul | B13: 60 | C13: 3.74 | D13: 11.15 | E13: 10 | F13: 3.74 | G13: 6.81 | K13: Jul | L13: 4.77 | M13: 11.15 | N13: 4.77 | O13: 6.81 | Q13: Maximum: for 1/2 hourly and daily periods use the highest value across all operational combustion lines for the month
A14: Aug | B14: 60 | C14: 4.03 | D14: 10.56 | E14: 10 | F14: 4.05 | G14: 7.4 | K14: Aug | L14: 4.72 | M14: 10.56 | N14: 4.72 | O14: 7.4
A15: Sep | B15: 60 | C15: 3.69 | D15: 13.05 | E15: 10 | F15: 3.74 | G15: 6.74 | K15: Sep | L15: 4.09 | M15: 13.05 | N15: 4.25 | O15: 6.74
A16: Oct | B16: 60 | C16: 3.62 | D16: 11.2 | E16: 10 | F16: 3.62 | G16: 7.62 | K16: Oct | L16: 4.5 | M16: 11.2 | N16: 4.5 | O16: 7.62
A17: Nov | B17: 60 | C17: 3.31 | D17: 13.06 | E17: 10 | F17: 3.33 | G17: 5.37 | K17: Nov | L17: 3.63 | M17: 9.66 | N17: 3.7 | O17: 5.37
A18: Dec | B18: 60 | C18: 3.48 | D18: 10.72 | E18: 10 | F18: 3.54 | G18: 7.41 | K18: Dec | L18: 3.99 | M18: 10.57 | N18: 4.11 | O18: 7.41
K19: Annual | L19: =AVERAGE(L7:L18) -> 4.0775 | M19: =MAX(M7:M18) -> 13.05 | N19: =AVERAGE(N7:N18) -> 4.123333333 | O19: =MAX(O7:O18) -> 7.62
J21: =+A6 -> 2022 | K21: mg/Nm3 | L21: Monthly 1/2 hourly mean | M21: Monthly 1/2 hourly maximum | N21: Monthly daily mean | O21: Monthly daily maximum
J22: A2 | K22: Jan | L22: 1.89 | M22: 5.14 | N22: 1.88 | O22: 2.59
K23: Feb | L23: 2.84 | M23: 9.37 | N23: 2.84 | O23: 4.87
K24: Mar | L24: 2.19 | M24: 7.09 | N24: 2.2 | O24: 3.68
K25: Apr | L25: 2.37 | M25: 6.56 | N25: 2.37 | O25: 3.33
K26: May | L26: 2.69 | M26: 7.58 | N26: 2.69 | O26: 3.49
K27: Jun | L27: 2.77 | M27: 7.98 | N27: 2.77 | O27: 3.92
K28: Jul | L28: 2.72 | M28: 9.49 | N28: 2.72 | O28: 3.59
K29: Aug | L29: 3.25 | M29: 9.94 | N29: 3.25 | O29: 4.39
K30: Sep | L30: 3.42 | M30: 11.26 | N30: 3.42 | O30: 4.87
K31: Oct | L31: 2.74 | M31: 10.84 | N31: 2.74 | O31: 5.07
K32: Nov | L32: 2.89 | M32: 13.06 | N32: 2.87 | O32: 3.97
K33: Dec | L33: 2.84 | M33: 10.72 | N33: 2.84 | O33: 4.1
K34: Annual | L34: =AVERAGE(L22:L33) -> 2.7175 | M34: =MAX(M22:M33) -> 13.06 | N34: =AVERAGE(N22:N33) -> 2.715833333 | O34: =MAX(O22:O33) -> 5.07
J36: =+A6 -> 2022 | K36: mg/Nm3 | L36: Monthly 1/2 hourly mean | M36: Monthly 1/2 hourly maximum | N36: Monthly daily mean | O36: Monthly daily maximum
J37: A3 | K37: Jan
K38: Feb
K39: Mar
K40: Apr
K41: May
K42: Jun
K43: Jul
K44: Aug
K45: Sep
K46: Oct
K47: Nov
A48: Comments : | K48: Dec
A49: K3 facility operates 2 lines (2 boilers and 2 emission points) with 1 common turbine. | K49: Annual | L49: =AVERAGE(L37:L48) ->  | M49: =MAX(M37:M48) -> 0 | N49: =AVERAGE(N37:N48) ->  | O49: =MAX(O37:O48) -> 0
J51: =+A6 -> 2022 | K51: mg/Nm3 | L51: Monthly 1/2 hourly mean | M51: Monthly 1/2 hourly maximum | N51: Monthly daily mean | O51: Monthly daily maximum
J52: A4 | K52: Jan
K53: Feb
K54: Mar
K55: Apr
K56: May
K57: Jun
K58: Jul
K59: Aug
K60: Sep
K61: Oct
K62: Nov
K63: Dec
K64: Annual | L64: =AVERAGE(L52:L63) ->  | M64: =MAX(M52:M63) -> 0 | N64: =AVERAGE(N52:N63) ->  | O64: =MAX(O52:O63) -> 0
J66: =+A6 -> 2022 | K66: mg/Nm3 | L66: Monthly 1/2 hourly mean | M66: Monthly 1/2 hourly maximum | N66: Monthly daily mean | O66: Monthly daily maximum
J67: A5 | K67: Jan
K68: Feb
K69: Mar
K70: Apr
K71: May
K72: Jun
K73: Jul
K74: Aug
K75: Sep
K76: Oct
K77: Nov
K78: Dec
K79: Annual | L79: =AVERAGE(L67:L78) ->  | M79: =MAX(M67:M78) -> 0 | N79: =AVERAGE(N67:N78) ->  | O79: =MAX(O67:O78) -> 0

Sheet SO2
A1: =+'Cover Page'!$B$29 -> Annual Performance Report 2022 | E1: =+'Cover Page'!$B$33 -> Kemsley Generating Station
A3: Monitoring of Sulphur dioxide emissions | D3: Whole Installation | G3: See Notes in Cell Q3 | J3: =+A3 -> Monitoring of Sulphur dioxide emissions | N3: Per Combustion Line | Q3: Notes:
Q4: User to add logic to complete Whole installation, Table A5:G18. From the data in Per Combustion Line, Table J6:O79, subject to No. of lines installed
A5: mg/Nm3 | B5: 1/2 Hourly Reference Periods | E5: Daily Reference Periods
A6: =+'Cover Page'!C39 -> 2022 | B6: 1/2 hourly SO2 ELV | C6: Monthly 1/2 hourly mean | D6: Highest 1/2 hourly maximum | E6: Daily SO2 ELV | F6: Monthly daily mean | G6: Highest daily maximum | J6: =+A6 -> 2022 | K6: mg/Nm3 | L6: Monthly 1/2 hourly mean | M6: Monthly 1/2 hourly maximum | N6: Monthly daily mean | O6: Monthly daily maximum
A7: Jan | B7: 200 | C7: 2.09 | D7: 48.15 | E7: 50 | F7: 2.03 | G7: 9.28 | J7: A1 | K7: Jan | L7: 2 | M7: 48.15 | N7: 1.89 | O7: 9.28
A8: Feb | B8: 200 | C8: 7.28 | D8: 83.85 | E8: 50 | F8: 7.06 | G8: 23.83 | K8: Feb | L8: 8.01 | M8: 83.85 | N8: 7.51 | O8: 23.83
A9: Mar | B9: 200 | C9: 6 | D9: 86.16 | E9: 50 | F9: 5.78 | G9: 17.59 | K9: Mar | L9: 4.61 | M9: 86.16 | N9: 3.58 | O9: 7.13 | Q9: Whole Installation table A5:G18:
A10: Apr | B10: 200 | C10: 5.97 | D10: 74.01 | E10: 50 | F10: 5.82 | G10: 21.75 | K10: Apr | L10: 6.63 | M10: 74.01 | N10: 6.25 | O10: 21.75 | Q10: Mean: for 1/2 hourly and daily periods calculate mean of values across all operational combustion lines for the month
A11: May | B11: 200 | C11: 3.41 | D11: 78.51 | E11: 50 | F11: 3.41 | G11: 7.74 | K11: May | L11: 3.85 | M11: 78.51 | N11: 3.87 | O11: 7.74
A12: Jun | B12: 200 | C12: 2.42 | D12: 93.04 | E12: 50 | F12: 2.42 | G12: 9.67 | K12: Jun | L12: 4.66 | M12: 93.04 | N12: 4.66 | O12: 9.67
A13: Jul | B13: 200 | C13: 2.21 | D13: 65.56 | E13: 50 | F13: 2.21 | G13: 6.27 | K13: Jul | L13: 2.14 | M13: 42.27 | N13: 2.14 | O13: 5.21 | Q13: Maximum: for 1/2 hourly and daily periods use the highest value across all operational combustion lines for the month
A14: Aug | B14: 200 | C14: 1.23 | D14: 49.72 | E14: 50 | F14: 1.19 | G14: 5.3 | K14: Aug | L14: 0.44 | M14: 34.79 | N14: 0.44 | O14: 4.83
A15: Sep | B15: 200 | C15: 0.91 | D15: 52.37 | E15: 50 | F15: 0.89 | G15: 6 | K15: Sep | L15: -0.31 | M15: 36.66 | N15: 0 | O15: 2.88
A16: Oct | B16: 200 | C16: 1.95 | D16: 50.72 | E16: 50 | F16: 1.95 | G16: 10.03 | K16: Oct | L16: 2.01 | M16: 46.48 | N16: 2.01 | O16: 10.03
A17: Nov | B17: 200 | C17: 0.94 | D17: 44.04 | E17: 50 | F17: 0.8 | G17: 5.47 | K17: Nov | L17: 0.67 | M17: 29.13 | N17: 0.44 | O17: 5.47
A18: Dec | B18: 200 | C18: 3.36 | D18: 97.55 | E18: 50 | F18: 3.09 | G18: 13.16 | K18: Dec | L18: 3.14 | M18: 67.87 | N18: 2.86 | O18: 13.16
K19: Annual | L19: =AVERAGE(L7:L18) -> 3.154166667 | M19: =MAX(M7:M18) -> 93.04 | N19: =AVERAGE(N7:N18) -> 2.970833333 | O19: =MAX(O7:O18) -> 23.83
J21: =+A6 -> 2022 | K21: mg/Nm3 | L21: Monthly 1/2 hourly mean | M21: Monthly 1/2 hourly maximum | N21: Monthly daily mean | O21: Monthly daily maximum
J22: A2 | K22: Jan | L22: 2.25 | M22: 32.13 | N22: 2.28 | O22: 6.44
K23: Feb | L23: 6.71 | M23: 71.79 | N23: 6.72 | O23: 17.34
K24: Mar | L24: 6.56 | M24: 62.59 | N24: 6.58 | O24: 17.59
K25: Apr | L25: 5.45 | M25: 68.9 | N25: 5.48 | O25: 15.32
K26: May | L26: 2.98 | M26: 51.31 | N26: 2.98 | O26: 6.75
K27: Jun | L27: 0.19 | M27: 46.72 | N27: 0.19 | O27: 3.39
K28: Jul | L28: 2.28 | M28: 65.56 | N28: 2.28 | O28: 6.27
K29: Aug | L29: 2.12 | M29: 49.72 | N29: 2.1 | O29: 5.3
K30: Sep | L30: 1.75 | M30: 52.37 | N30: 1.75 | O30: 6
K31: Oct | L31: 1.89 | M31: 50.72 | N31: 1.89 | O31: 5.27
K32: Nov | L32: 1.29 | M32: 44.04 | N32: 1.24 | O32: 5.29
K33: Dec | L33: 3.65 | M33: 97.55 | N33: 3.36 | O33: 11.6
K34: Annual | L34: =AVERAGE(L22:L33) -> 3.093333333 | M34: =MAX(M22:M33) -> 97.55 | N34: =AVERAGE(N22:N33) -> 3.070833333 | O34: =MAX(O22:O33) -> 17.59
J36: =+A6 -> 2022 | K36: mg/Nm3 | L36: Monthly 1/2 hourly mean | M36: Monthly 1/2 hourly maximum | N36: Monthly daily mean | O36: Monthly daily maximum
J37: A3 | K37: Jan
K38: Feb
K39: Mar
K40: Apr
K41: May
K42: Jun
K43: Jul
K44: Aug
K45: Sep
K46: Oct
K47: Nov
A48: Comments : | K48: Dec
A49: K3 facility operates 2 lines (2 boilers and 2 emission points) with 1 common turbine. | K49: Annual | L49: =AVERAGE(L37:L48) ->  | M49: =MAX(M37:M48) -> 0 | N49: =AVERAGE(N37:N48) ->  | O49: =MAX(O37:O48) -> 0
J51: =+A6 -> 2022 | K51: mg/Nm3 | L51: Monthly 1/2 hourly mean | M51: Monthly 1/2 hourly maximum | N51: Monthly daily mean | O51: Monthly daily maximum
J52: A4 | K52: Jan
K53: Feb
K54: Mar
K55: Apr
K56: May
K57: Jun
K58: Jul
K59: Aug
K60: Sep
K61: Oct
K62: Nov
K63: Dec
K64: Annual | L64: =AVERAGE(L52:L63) ->  | M64: =MAX(M52:M63) -> 0 | N64: =AVERAGE(N52:N63) ->  | O64: =MAX(O52:O63) -> 0
J66: =+A6 -> 2022 | K66: mg/Nm3 | L66: Monthly 1/2 hourly mean | M66: Monthly 1/2 hourly maximum | N66: Monthly daily mean | O66: Monthly daily maximum
J67: A5 | K67: Jan
K68: Feb
K69: Mar
K70: Apr
K71: May
K72: Jun
K73: Jul
K74: Aug
K75: Sep
K76: Oct
K77: Nov
K78: Dec
K79: Annual | L79: =AVERAGE(L67:L78) ->  | M79: =MAX(M67:M78) -> 0 | N79: =AVERAGE(N67:N78) ->  | O79: =MAX(O67:O78) -> 0

Sheet NOx
A1: =+'Cover Page'!$B$29 -> Annual Performance Report 2022 | E1: =+'Cover Page'!$B$33 -> Kemsley Generating Station
A3: Monitoring of Oxides of Nitrogen emissions | D3: Whole Installation | G3: See Notes in Cell Q3 | J3: =+A3 -> Monitoring of Oxides of Nitrogen emissions | N3: Per Combustion Line | Q3: Notes:
Q4: User to add logic to complete Whole installation, Table A5:G18. From the data in Per Combustion Line, Table J6:O79, subject to No. of lines installed
A5: mg/Nm3 | B5: 1/2 Hourly Reference Periods | E5: Daily Reference Periods
A6: =+'Cover Page'!C39 -> 2022 | B6: 1/2 hourly NOx ELV | C6: Monthly 1/2 hourly mean | D6: Highest 1/2 hourly maximum | E6: Daily NOx ELV | F6: Monthly daily mean | G6: Highest daily maximum | J6: =+A6 -> 2022 | K6: mg/Nm3 | L6: Monthly 1/2 hourly mean | M6: Monthly 1/2 hourly maximum | N6: Monthly daily mean | O6: Monthly daily maximum
A7: Jan | B7: 400 | C7: 175.3 | D7: 218.35 | E7: 200 | F7: 175.35 | G7: 179.36 | J7: A1 | K7: Jan | L7: 175.36 | M7: 218.35 | N7: 175.43 | O7: 179.36
A8: Feb | B8: 400 | C8: 175.43 | D8: 243.38 | E8: 200 | F8: 175.41 | G8: 183.17 | K8: Feb | L8: 175.26 | M8: 214.76 | N8: 175.2 | O8: 175.98
A9: Mar | B9: 400 | C9: 175.75 | D9: 258.68 | E9: 200 | F9: 175.77 | G9: 185.24 | K9: Mar | L9: 175.21 | M9: 201.9 | N9: 175.21 | O9: 175.36 | Q9: Whole Installation table A5:G18:
A10: Apr | B10: 400 | C10: 174.86 | D10: 226.87 | E10: 200 | F10: 174.86 | G10: 177.32 | K10: Apr | L10: 174.71 | M10: 203.76 | N10: 174.7 | O10: 177.3 | Q10: Mean: for 1/2 hourly and daily periods calculate mean of values across all operational combustion lines for the month
A11: May | B11: 400 | C11: 175.43 | D11: 231.15 | E11: 200 | F11: 175.44 | G11: 179.22 | K11: May | L11: 175.58 | M11: 231.15 | N11: 175.6 | O11: 179.22
A12: Jun | B12: 400 | C12: 175.33 | D12: 211.63 | E12: 200 | F12: 175.33 | G12: 176.52 | K12: Jun | L12: 175.34 | M12: 207.72 | N12: 175.34 | O12: 176.52
A13: Jul | B13: 400 | C13: 175.25 | D13: 203.25 | E13: 200 | F13: 175.25 | G13: 176.46 | K13: Jul | L13: 175.23 | M13: 199.1 | N13: 175.23 | O13: 176.18 | Q13: Maximum: for 1/2 hourly and daily periods use the highest value across all operational combustion lines for the month
A14: Aug | B14: 400 | C14: 175.26 | D14: 217.09 | E14: 200 | F14: 175.26 | G14: 176.88 | K14: Aug | L14: 175.29 | M14: 217.09 | N14: 175.29 | O14: 176.88
A15: Sep | B15: 400 | C15: 175.55 | D15: 207.14 | E15: 200 | F15: 175.57 | G15: 184.44 | K15: Sep | L15: 175.25 | M15: 207.14 | N15: 175.26 | O15: 176.14
A16: Oct | B16: 400 | C16: 175.43 | D16: 228.19 | E16: 200 | F16: 175.43 | G16: 179.58 | K16: Oct | L16: 175.28 | M16: 225.72 | N16: 175.28 | O16: 176.57
A17: Nov | B17: 400 | C17: 175.53 | D17: 237.35 | E17: 200 | F17: 175.56 | G17: 177.94 | K17: Nov | L17: 175.72 | M17: 237.35 | N17: 175.77 | O17: 177.94
A18: Dec | B18: 400 | C18: 175.27 | D18: 222.41 | E18: 200 | F18: 175.28 | G18: 179.38 | K18: Dec | L18: 175.49 | M18: 222.41 | N18: 175.51 | O18: 179.38
K19: Annual | L19: =AVERAGE(L7:L18) -> 175.31 | M19: =MAX(M7:M18) -> 237.35 | N19: =AVERAGE(N7:N18) -> 175.3183333 | O19: =MAX(O7:O18) -> 179.38
J21: =+A6 -> 2022 | K21: mg/Nm3 | L21: Monthly 1/2 hourly mean | M21: Monthly 1/2 hourly maximum | N21: Monthly daily mean | O21: Monthly daily maximum
J22: A2 | K22: Jan | L22: 175.21 | M22: 203.82 | N22: 175.22 | O22: 176.18
K23: Feb | L23: 175.56 | M23: 243.38 | N23: 175.57 | O23: 183.17
K24: Mar | L24: 175.97 | M24: 258.68 | N24: 175.97 | O24: 185.24
K25: Apr | L25: 174.98 | M25: 226.87 | N25: 174.98 | O25: 177.32
K26: May | L26: 175.28 | M26: 197.38 | N26: 175.28 | O26: 176.69
K27: Jun | L27: 175.32 | M27: 211.63 | N27: 175.32 | O27: 176.48
K28: Jul | L28: 175.26 | M28: 203.25 | N28: 175.26 | O28: 176.46
K29: Aug | L29: 175.23 | M29: 198.93 | N29: 175.22 | O29: 175.68
K30: Sep | L30: 175.76 | M30: 204.76 | N30: 175.76 | O30: 184.44
K31: Oct | L31: 175.58 | M31: 228.19 | N31: 175.58 | O31: 179.58
K32: Nov | L32: 175.29 | M32: 224.2 | N32: 175.3 | O32: 175.94
K33: Dec | L33: 174.98 | M33: 194.43 | N33: 174.98 | O33: 175.37
K34: Annual | L34: =AVERAGE(L22:L33) -> 175.3683333 | M34: =MAX(M22:M33) -> 258.68 | N34: =AVERAGE(N22:N33) -> 175.37 | O34: =MAX(O22:O33) -> 185.24
J36: =+A6 -> 2022 | K36: mg/Nm3 | L36: Monthly 1/2 hourly mean | M36: Monthly 1/2 hourly maximum | N36: Monthly daily mean | O36: Monthly daily maximum
J37: A3 | K37: Jan
K38: Feb
K39: Mar
K40: Apr
K41: May
K42: Jun
K43: Jul
K44: Aug
K45: Sep
K46: Oct
K47: Nov
A48: Comments : | K48: Dec
A49: K3 facility operates 2 lines (2 boilers and 2 emission points) with 1 common turbine. | K49: Annual | L49: =AVERAGE(L37:L48) ->  | M49: =MAX(M37:M48) -> 0 | N49: =AVERAGE(N37:N48) ->  | O49: =MAX(O37:O48) -> 0
J51: =+A6 -> 2022 | K51: mg/Nm3 | L51: Monthly 1/2 hourly mean | M51: Monthly 1/2 hourly maximum | N51: Monthly daily mean | O51: Monthly daily maximum
J52: A4 | K52: Jan
K53: Feb
K54: Mar
K55: Apr
K56: May
K57: Jun
K58: Jul
K59: Aug
K60: Sep
K61: Oct
K62: Nov
K63: Dec
K64: Annual | L64: =AVERAGE(L52:L63) ->  | M64: =MAX(M52:M63) -> 0 | N64: =AVERAGE(N52:N63) ->  | O64: =MAX(O52:O63) -> 0
J66: =+A6 -> 2022 | K66: mg/Nm3 | L66: Monthly 1/2 hourly mean | M66: Monthly 1/2 hourly maximum | N66: Monthly daily mean | O66: Monthly daily maximum
J67: A5 | K67: Jan
K68: Feb
K69: Mar
K70: Apr
K71: May
K72: Jun
K73: Jul
K74: Aug
K75: Sep
K76: Oct
K77: Nov
K78: Dec
K79: Annual | L79: =AVERAGE(L67:L78) ->  | M79: =MAX(M67:M78) -> 0 | N79: =AVERAGE(N67:N78) ->  | O79: =MAX(O67:O78) -> 0

Sheet TOC
A1: =+'Cover Page'!$B$29 -> Annual Performance Report 2022 | E1: =+'Cover Page'!$B$33 -> Kemsley Generating Station
A3: Monitoring of Total organic carbon emissions | D3: Whole Installation | G3: See Notes in Cell Q3 | J3: =+A3 -> Monitoring of Total organic carbon emissions | N3: Per Combustion Line | Q3: Notes:
Q4: User to add logic to complete Whole installation, Table A5:G18. From the data in Per Combustion Line, Table J6:O79, subject to No. of lines installed
A5: mg/Nm3 | B5: 1/2 Hourly Reference Periods | E5: Daily Reference Periods
A6: =+'Cover Page'!C39 -> 2022 | B6: 1/2 hourly TOC ELV | C6: Monthly 1/2 hourly mean | D6: Highest 1/2 hourly maximum | E6: Daily TOC ELV | F6: Monthly daily mean | G6: Highest daily maximum | J6: =+A6 -> 2022 | K6: mg/Nm3 | L6: Monthly 1/2 hourly mean | M6: Monthly 1/2 hourly maximum | N6: Monthly daily mean | O6: Monthly daily maximum
A7: Jan | B7: 20 | C7: 0.15 | D7: 1.86 | E7: 10 | F7: 0.15 | G7: 0.35 | J7: A1 | K7: Jan | L7: 0.15 | M7: 1.35 | N7: 0.14 | O7: 0.29
A8: Feb | B8: 20 | C8: 0.11 | D8: 2.26 | E8: 10 | F8: 0.1 | G8: 0.32 | K8: Feb | L8: 0.18 | M8: 2.2 | N8: 0.17 | O8: 0.32
A9: Mar | B9: 20 | C9: 0.13 | D9: 4.49 | E9: 10 | F9: 0.12 | G9: 0.33 | K9: Mar | L9: 0.23 | M9: 1.22 | N9: 0.23 | O9: 0.33 | Q9: Whole Installation table A5:G18:
A10: Apr | B10: 20 | C10: 0.14 | D10: 5.81 | E10: 10 | F10: 0.14 | G10: 0.32 | K10: Apr | L10: 0.21 | M10: 1.17 | N10: 0.2 | O10: 0.32 | Q10: Mean: for 1/2 hourly and daily periods calculate mean of values across all operational combustion lines for the month
A11: May | B11: 20 | C11: 0.14 | D11: 3.01 | E11: 10 | F11: 0.14 | G11: 0.26 | K11: May | L11: 0.19 | M11: 3.01 | N11: 0.19 | O11: 0.24
A12: Jun | B12: 20 | C12: 0.15 | D12: 3.76 | E12: 10 | F12: 0.15 | G12: 0.29 | K12: Jun | L12: 0.19 | M12: 1.48 | N12: 0.19 | O12: 0.25
A13: Jul | B13: 20 | C13: 0.16 | D13: 3.15 | E13: 10 | F13: 0.16 | G13: 0.28 | K13: Jul | L13: 0.21 | M13: 3.15 | N13: 0.21 | O13: 0.28 | Q13: Maximum: for 1/2 hourly and daily periods use the highest value across all operational combustion lines for the month
A14: Aug | B14: 20 | C14: 0.19 | D14: 3.51 | E14: 10 | F14: 0.19 | G14: 0.35 | K14: Aug | L14: 0.21 | M14: 2.25 | N14: 0.21 | O14: 0.28
A15: Sep | B15: 20 | C15: 0.19 | D15: 3.33 | E15: 10 | F15: 0.17 | G15: 0.33 | K15: Sep | L15: 0.26 | M15: 3.01 | N15: 0.23 | O15: 0.33
A16: Oct | B16: 20 | C16: 0.17 | D16: 2.23 | E16: 10 | F16: 0.17 | G16: 0.32 | K16: Oct | L16: 0.22 | M16: 2.23 | N16: 0.22 | O16: 0.32
A17: Nov | B17: 20 | C17: 0.16 | D17: 1.79 | E17: 10 | F17: 0.16 | G17: 0.29 | K17: Nov | L17: 0.21 | M17: 1.79 | N17: 0.2 | O17: 0.29
A18: Dec | B18: 20 | C18: 0.17 | D18: 2.64 | E18: 10 | F18: 0.16 | G18: 0.34 | K18: Dec | L18: 0.23 | M18: 2.64 | N18: 0.21 | O18: 0.34
K19: Annual | L19: =AVERAGE(L7:L18) -> 0.2075 | M19: =MAX(M7:M18) -> 3.15 | N19: =AVERAGE(N7:N18) -> 0.2 | O19: =MAX(O7:O18) -> 0.34
J21: =+A6 -> 2022 | K21: mg/Nm3 | L21: Monthly 1/2 hourly mean | M21: Monthly 1/2 hourly maximum | N21: Monthly daily mean | O21: Monthly daily maximum
J22: A2 | K22: Jan | L22: 0.15 | M22: 1.86 | N22: 0.15 | O22: 0.35
K23: Feb | L23: 0.05 | M23: 2.26 | N23: 0.05 | O23: 0.25
K24: Mar | L24: 0.09 | M24: 4.49 | N24: 0.09 | O24: 0.23
K25: Apr | L25: 0.09 | M25: 5.81 | N25: 0.09 | O25: 0.18
K26: May | L26: 0.09 | M26: 2.57 | N26: 0.09 | O26: 0.26
K27: Jun | L27: 0.12 | M27: 3.76 | N27: 0.12 | O27: 0.29
K28: Jul | L28: 0.12 | M28: 2.02 | N28: 0.12 | O28: 0.23
K29: Aug | L29: 0.17 | M29: 3.51 | N29: 0.16 | O29: 0.35
K30: Sep | L30: 0.14 | M30: 3.33 | N30: 0.14 | O30: 0.25
K31: Oct | L31: 0.11 | M31: 1.84 | N31: 0.11 | O31: 0.17
K32: Nov | L32: 0.11 | M32: 1.35 | N32: 0.11 | O32: 0.19
K33: Dec | L33: 0.1 | M33: 2.19 | N33: 0.1 | O33: 0.16
K34: Annual | L34: =AVERAGE(L22:L33) -> 0.1116666667 | M34: =MAX(M22:M33) -> 5.81 | N34: =AVERAGE(N22:N33) -> 0.1108333333 | O34: =MAX(O22:O33) -> 0.35
J36: =+A6 -> 2022 | K36: mg/Nm3 | L36: Monthly 1/2 hourly mean | M36: Monthly 1/2 hourly maximum | N36: Monthly daily mean | O36: Monthly daily maximum
J37: A3 | K37: Jan
K38: Feb
K39: Mar
K40: Apr
K41: May
K42: Jun
K43: Jul
K44: Aug
K45: Sep
K46: Oct
K47: Nov
A48: Comments : | K48: Dec
A49: K3 facility operates 2 lines (2 boilers and 2 emission points) with 1 common turbine. | K49: Annual | L49: =AVERAGE(L37:L48) ->  | M49: =MAX(M37:M48) -> 0 | N49: =AVERAGE(N37:N48) ->  | O49: =MAX(O37:O48) -> 0
J51: =+A6 -> 2022 | K51: mg/Nm3 | L51: Monthly 1/2 hourly mean | M51: Monthly 1/2 hourly maximum | N51: Monthly daily mean | O51: Monthly daily maximum
J52: A4 | K52: Jan
K53: Feb
K54: Mar
K55: Apr
K56: May
K57: Jun
K58: Jul
K59: Aug
K60: Sep
K61: Oct
K62: Nov
K63: Dec
K64: Annual | L64: =AVERAGE(L52:L63) ->  | M64: =MAX(M52:M63) -> 0 | N64: =AVERAGE(N52:N63) ->  | O64: =MAX(O52:O63) -> 0
J66: =+A6 -> 2022 | K66: mg/Nm3 | L66: Monthly 1/2 hourly mean | M66: Monthly 1/2 hourly maximum | N66: Monthly daily mean | O66: Monthly daily maximum
J67: A5 | K67: Jan
K68: Feb
K69: Mar
K70: Apr
K71: May
K72: Jun
K73: Jul
K74: Aug
K75: Sep
K76: Oct
K77: Nov
K78: Dec
K79: Annual | L79: =AVERAGE(L67:L78) ->  | M79: =MAX(M67:M78) -> 0 | N79: =AVERAGE(N67:N78) ->  | O79: =MAX(O67:O78) -> 0

Sheet Particulates
A1: =+'Cover Page'!$B$29 -> Annual Performance Report 2022 | E1: =+'Cover Page'!$B$33 -> Kemsley Generating Station
A3: Monitoring of Particulate matter emissions | D3: Whole Installation | G3: See Notes in Cell Q3 | J3: =+A3 -> Monitoring of Particulate matter emissions | N3: Per Combustion Line | Q3: Notes:
Q4: User to add logic to complete Whole installation, Table A5:G18. From the data in Per Combustion Line, Table J6:O79, subject to No. of lines installed
A5: mg/Nm3 | B5: 1/2 Hourly Reference Periods | E5: Daily Reference Periods
A6: =+'Cover Page'!C39 -> 2022 | B6: 1/2 hourly PM ELV | C6: Monthly 1/2 hourly mean | D6: Highest 1/2 hourly maximum | E6: Daily PM ELV | F6: Monthly daily mean | G6: Highest daily maximum | J6: =+A6 -> 2022 | K6: mg/Nm3 | L6: Monthly 1/2 hourly mean | M6: Monthly 1/2 hourly maximum | N6: Monthly daily mean | O6: Monthly daily maximum
A7: Jan | B7: 30 | C7: 0.15 | D7: 0.44 | E7: 10 | F7: 0.15 | G7: 0.29 | J7: A1 | K7: Jan | L7: 0.08 | M7: 0.44 | N7: 0.08 | O7: 0.12
A8: Feb | B8: 30 | C8: 0.19 | D8: 0.43 | E8: 10 | F8: 0.19 | G8: 0.31 | K8: Feb | L8: 0.08 | M8: 0.09 | N8: 0.08 | O8: 0.08
A9: Mar | B9: 30 | C9: 0.31 | D9: 2.22 | E9: 10 | F9: 0.31 | G9: 0.84 | K9: Mar | L9: 0.08 | M9: 0.1 | N9: 0.08 | O9: 0.08 | Q9: Whole Installation table A5:G18:
A10: Apr | B10: 30 | C10: 0.18 | D10: 0.36 | E10: 10 | F10: 0.18 | G10: 0.28 | K10: Apr | L10: 0.08 | M10: 0.12 | N10: 0.08 | O10: 0.08 | Q10: Mean: for 1/2 hourly and daily periods calculate mean of values across all operational combustion lines for the month
A11: May | B11: 30 | C11: 0.16 | D11: 0.31 | E11: 10 | F11: 0.17 | G11: 0.27 | K11: May | L11: 0.08 | M11: 0.09 | N11: 0.08 | O11: 0.08
A12: Jun | B12: 30 | C12: 0.17 | D12: 0.32 | E12: 10 | F12: 0.17 | G12: 0.27 | K12: Jun | L12: 0.08 | M12: 0.28 | N12: 0.08 | O12: 0.09
A13: Jul | B13: 30 | C13: 0.22 | D13: 1.58 | E13: 10 | F13: 0.22 | G13: 0.53 | K13: Jul | L13: 0.08 | M13: 0.1 | N13: 0.08 | O13: 0.08 | Q13: Maximum: for 1/2 hourly and daily periods use the highest value across all operational combustion lines for the month
A14: Aug | B14: 30 | C14: 0.2 | D14: 1.58 | E14: 10 | F14: 0.2 | G14: 0.53 | K14: Aug | L14: 0.08 | M14: 0.22 | N14: 0.08 | O14: 0.14
A15: Sep | B15: 30 | C15: 0.26 | D15: 2.25 | E15: 10 | F15: 0.26 | G15: 0.66 | K15: Sep | L15: 0.08 | M15: 0.12 | N15: 0.08 | O15: 0.09
A16: Oct | B16: 30 | C16: 0.26 | D16: 2.05 | E16: 10 | F16: 0.26 | G16: 0.78 | K16: Oct | L16: 0.07 | M16: 0.09 | N16: 0.07 | O16: 0.08
A17: Nov | B17: 30 | C17: 0.23 | D17: 3.91 | E17: 10 | F17: 0.23 | G17: 1.18 | K17: Nov | L17: 0.06 | M17: 0.19 | N17: 0.07 | O17: 0.09
A18: Dec | B18: 30 | C18: 0.07 | D18: 0.28 | E18: 10 | F18: 0.07 | G18: 0.09 | K18: Dec | L18: 0.07 | M18: 0.28 | N18: 0.07 | O18: 0.07
K19: Annual | L19: =AVERAGE(L7:L18) -> 0.07666666667 | M19: =MAX(M7:M18) -> 0.44 | N19: =AVERAGE(N7:N18) -> 0.0775 | O19: =MAX(O7:O18) -> 0.14
J21: =+A6 -> 2022 | K21: mg/Nm3 | L21: Monthly 1/2 hourly mean | M21: Monthly 1/2 hourly maximum | N21: Monthly daily mean | O21: Monthly daily maximum
J22: A2 | K22: Jan | L22: 0.28 | M22: 0.34 | N22: 0.28 | O22: 0.29
K23: Feb | L23: 0.27 | M23: 0.43 | N23: 0.27 | O23: 0.31
K24: Mar | L24: 0.4 | M24: 2.22 | N24: 0.4 | O24: 0.84
K25: Apr | L25: 0.26 | M25: 0.36 | N25: 0.26 | O25: 0.28
K26: May | L26: 0.25 | M26: 0.31 | N26: 0.25 | O26: 0.27
K27: Jun | L27: 0.25 | M27: 0.32 | N27: 0.25 | O27: 0.27
K28: Jul | L28: 0.36 | M28: 1.58 | N28: 0.36 | O28: 0.53
K29: Aug | L29: 0.34 | M29: 1.58 | N29: 0.34 | O29: 0.53
K30: Sep | L30: 0.38 | M30: 2.25 | N30: 0.38 | O30: 0.66
K31: Oct | L31: 0.45 | M31: 2.05 | N31: 0.45 | O31: 0.78
K32: Nov | L32: 0.43 | M32: 3.91 | N32: 0.44 | O32: 1.18
K33: Dec | L33: 0.08 | M33: 0.15 | N33: 0.08 | O33: 0.09
K34: Annual | L34: =AVERAGE(L22:L33) -> 0.3125 | M34: =MAX(M22:M33) -> 3.91 | N34: =AVERAGE(N22:N33) -> 0.3133333333 | O34: =MAX(O22:O33) -> 1.18
J36: =+A6 -> 2022 | K36: mg/Nm3 | L36: Monthly 1/2 hourly mean | M36: Monthly 1/2 hourly maximum | N36: Monthly daily mean | O36: Monthly daily maximum
J37: A3 | K37: Jan
K38: Feb
K39: Mar
K40: Apr
K41: May
K42: Jun
K43: Jul
K44: Aug
K45: Sep
K46: Oct
K47: Nov
A48: Comments : | K48: Dec
A49: K3 facility operates 2 lines (2 boilers and 2 emission points) with 1 common turbine. | K49: Annual | L49: =AVERAGE(L37:L48) ->  | M49: =MAX(M37:M48) -> 0 | N49: =AVERAGE(N37:N48) ->  | O49: =MAX(O37:O48) -> 0
J51: =+A6 -> 2022 | K51: mg/Nm3 | L51: Monthly 1/2 hourly mean | M51: Monthly 1/2 hourly maximum | N51: Monthly daily mean | O51: Monthly daily maximum
J52: A4 | K52: Jan
K53: Feb
K54: Mar
K55: Apr
K56: May
K57: Jun
K58: Jul
K59: Aug
K60: Sep
K61: Oct
K62: Nov
K63: Dec
K64: Annual | L64: =AVERAGE(L52:L63) ->  | M64: =MAX(M52:M63) -> 0 | N64: =AVERAGE(N52:N63) ->  | O64: =MAX(O52:O63) -> 0
J66: =+A6 -> 2022 | K66: mg/Nm3 | L66: Monthly 1/2 hourly mean | M66: Monthly 1/2 hourly maximum | N66: Monthly daily mean | O66: Monthly daily maximum
J67: A5 | K67: Jan
K68: Feb
K69: Mar
K70: Apr
K71: May
K72: Jun
K73: Jul
K74: Aug
K75: Sep
K76: Oct
K77: Nov
K78: Dec
K79: Annual | L79: =AVERAGE(L67:L78) ->  | M79: =MAX(M67:M78) -> 0 | N79: =AVERAGE(N67:N78) ->  | O79: =MAX(O67:O78) -> 0

Sheet CO 0.5hourly
A1: =+'Cover Page'!$B$29 -> Annual Performance Report 2022 | E1: =+'Cover Page'!$B$33 -> Kemsley Generating Station
A3: Monitoring of Carbon Monoxide (half hourly) | D3: Whole Installation | G3: See Notes in Cell Q3 | I3: * | J3: =+A3 -> Monitoring of Carbon Monoxide (half hourly) | N3: Per Combustion Line | Q3: Notes:
Q4: User to add logic to complete Whole installation, Table A5:G18. From the data in Per Combustion Line, Table J6:O79, subject to No. of lines installed
A5: mg/Nm3 | B5: 1/2 Hourly Reference Periods* | E5: Daily Reference Periods
A6: =+'Cover Page'!C39 -> 2022 | B6: 1/2 hourly CO ELV | C6: Monthly 1/2 hourly mean | D6: Highest 1/2 hourly maximum | E6: Daily CO ELV | F6: Monthly daily mean | G6: Highest daily maximum | J6: =+A6 -> 2022 | K6: mg/Nm3 | L6: Monthly 1/2 hourly mean | M6: Monthly 1/2 hourly maximum | N6: Monthly daily mean | O6: Monthly daily maximum
A7: Jan | B7: 100 | C7: N/A | D7: N/A | E7: 50 | F7: 3.13 | G7: 5.6 | J7: A1 | K7: Jan | L7: N/A | M7: N/A | N7: 3.33 | O7: 4.12
A8: Feb | B8: 100 | C8: N/A | D8: N/A | E8: 50 | F8: 3.69 | G8: 6.42 | K8: Feb | L8: N/A | M8: N/A | N8: 3.99 | O8: 6.15
A9: Mar | B9: 100 | C9: N/A | D9: N/A | E9: 50 | F9: 3.47 | G9: 7.15 | K9: Mar | L9: N/A | M9: N/A | N9: 3.36 | O9: 3.95 | Q9: Whole Installation table A5:G18:
A10: Apr | B10: 100 | C10: N/A | D10: N/A | E10: 50 | F10: 3.54 | G10: 14.56 | K10: Apr | L10: N/A | M10: N/A | N10: 3.19 | O10: 4.01 | Q10: Mean: for 1/2 hourly and daily periods calculate mean of values across all operational combustion lines for the month
A11: May | B11: 100 | C11: N/A | D11: N/A | E11: 50 | F11: 3.5 | G11: 7.25 | K11: May | L11: N/A | M11: N/A | N11: 3.55 | O11: 7.25
A12: Jun | B12: 100 | C12: N/A | D12: N/A | E12: 50 | F12: 4.24 | G12: 18.65 | K12: Jun | L12: N/A | M12: N/A | N12: 3.36 | O12: 6.92
A13: Jul | B13: 100 | C13: N/A | D13: N/A | E13: 50 | F13: 3.85 | G13: 6.4 | K13: Jul | L13: N/A | M13: N/A | N13: 3.66 | O13: 5.96 | Q13: Maximum: for 1/2 hourly and daily periods use the highest value across all operational combustion lines for the month
A14: Aug | B14: 100 | C14: N/A | D14: N/A | E14: 50 | F14: 5.22 | G14: 11.64 | K14: Aug | L14: N/A | M14: N/A | N14: 5.04 | O14: 10.54
A15: Sep | B15: 100 | C15: N/A | D15: N/A | E15: 50 | F15: 4.84 | G15: 7.72 | K15: Sep | L15: N/A | M15: N/A | N15: 5.42 | O15: 6.68
A16: Oct | B16: 100 | C16: N/A | D16: N/A | E16: 50 | F16: 5.01 | G16: 7.65 | K16: Oct | L16: N/A | M16: N/A | N16: 5.21 | O16: 7.51
A17: Nov | B17: 100 | C17: N/A | D17: N/A | E17: 50 | F17: 4.97 | G17: 7.17 | K17: Nov | L17: N/A | M17: N/A | N17: 5.27 | O17: 7.17
A18: Dec | B18: 100 | C18: N/A | D18: N/A | E18: 50 | F18: 4.5 | G18: 6.81 | K18: Dec | L18: N/A | M18: N/A | N18: 5.28 | O18: 6.81
K19: Annual | L19: =AVERAGE(L7:L18) ->  | M19: =MAX(M7:M18) -> 0 | N19: =AVERAGE(N7:N18) -> 4.221666667 | O19: =MAX(O7:O18) -> 10.54
J21: =+A6 -> 2022 | K21: mg/Nm3 | L21: Monthly 1/2 hourly mean | M21: Monthly 1/2 hourly maximum | N21: Monthly daily mean | O21: Monthly daily maximum
J22: A2 | K22: Jan | L22: N/A | M22: N/A | N22: 2.79 | O22: 5.6
K23: Feb | L23: N/A | M23: N/A | N23: 3.47 | O23: 6.42
K24: Mar | L24: N/A | M24: N/A | N24: 3.52 | O24: 7.15
K25: Apr | L25: N/A | M25: N/A | N25: 3.82 | O25: 14.56
K26: May | L26: N/A | M26: N/A | N26: 3.45 | O26: 7.22
K27: Jun | L27: N/A | M27: N/A | N27: 5.11 | O27: 18.65
K28: Jul | L28: N/A | M28: N/A | N28: 4.05 | O28: 6.4
K29: Aug | L29: N/A | M29: N/A | N29: 5.44 | O29: 11.64
K30: Sep | L30: N/A | M30: N/A | N30: 4.47 | O30: 7.72
K31: Oct | L31: N/A | M31: N/A | N31: 4.8 | O31: 7.65
K32: Nov | L32: N/A | M32: N/A | N32: 4.6 | O32: 6.3
K33: Dec | L33: N/A | M33: N/A | N33: 3.53 | O33: 6.09
K34: Annual | L34: =AVERAGE(L22:L33) ->  | M34: =MAX(M22:M33) -> 0 | N34: =AVERAGE(N22:N33) -> 4.0875 | O34: =MAX(O22:O33) -> 18.65
J36: =+A6 -> 2022 | K36: mg/Nm3 | L36: Monthly 1/2 hourly mean | M36: Monthly 1/2 hourly maximum | N36: Monthly daily mean | O36: Monthly daily maximum
J37: A3 | K37: Jan
K38: Feb
K39: Mar
K40: Apr
K41: May
K42: Jun
K43: Jul
K44: Aug
K45: Sep
K46: Oct
K47: Nov
A48: Comments : | K48: Dec
A49: K3 facility operates 2 lines (2 boilers and 2 emission points) with 1 common turbine. *CO permit complince at this facility is based on 95%ile 10-min avgerage not half hourly averages. | K49: Annual | L49: =AVERAGE(L37:L48) ->  | M49: =MAX(M37:M48) -> 0 | N49: =AVERAGE(N37:N48) ->  | O49: =MAX(O37:O48) -> 0
J51: =+A6 -> 2022 | K51: mg/Nm3 | L51: Monthly 1/2 hourly mean | M51: Monthly 1/2 hourly maximum | N51: Monthly daily mean | O51: Monthly daily maximum
J52: A4 | K52: Jan
K53: Feb
K54: Mar
K55: Apr
K56: May
K57: Jun
K58: Jul
K59: Aug
K60: Sep
K61: Oct
K62: Nov
K63: Dec
K64: Annual | L64: =AVERAGE(L52:L63) ->  | M64: =MAX(M52:M63) -> 0 | N64: =AVERAGE(N52:N63) ->  | O64: =MAX(O52:O63) -> 0
J66: =+A6 -> 2022 | K66: mg/Nm3 | L66: Monthly 1/2 hourly mean | M66: Monthly 1/2 hourly maximum | N66: Monthly daily mean | O66: Monthly daily maximum
J67: A5 | K67: Jan
K68: Feb
K69: Mar
K70: Apr
K71: May
K72: Jun
K73: Jul
K74: Aug
K75: Sep
K76: Oct
K77: Nov
K78: Dec
K79: Annual | L79: =AVERAGE(L67:L78) ->  | M79: =MAX(M67:M78) -> 0 | N79: =AVERAGE(N67:N78) ->  | O79: =MAX(O67:O78) -> 0

Sheet CO 95% 10 min
A1: =+'Cover Page'!$B$29 -> Annual Performance Report 2022 | E1: =+'Cover Page'!$B$33 -> Kemsley Generating Station
A3: Monitoring of Carbon Monoxide (10-minute avg) | E3: Whole Installation | H3: See Notes in Cell S3 | J3: =+A3 -> Monitoring of Carbon Monoxide (10-minute avg) | O3: Per Combustion Line | Q3: Notes: | S3: Notes:
S4: User to add logic to complete Whole installation, Table A5:H18. From the data in Per Combustion Line, Table K6:Q79, subject to No. of lines installed
A5: mg/Nm3 | B5: 10-minute Reference Periods | F5: Daily Reference Periods
A6: =+'Cover Page'!C39 -> 2022 | B6: 95%ile 10-min avg CO ELV | C6: 95%ile 10-min avg maximum | D6: Monthly CO 10-min avg mean | E6: 10-min avg maximum | F6: Daily CO ELV | G6: Monthly daily mean | H6: Highest daily maximum | K6: =+A6 -> 2022 | L6: mg/Nm3 | M6: 95%ile 10-min avg maximum | N6: Monthly CO 10-min avg mean | O6: 10-min avg maximum | P6: Monthly daily mean | Q6: Monthly daily maximum
A7: Jan | B7: 150 | C7: 7.88 | D7: 3.16 | E7: 254.17 | F7: 50 | G7: 3.14 | H7: 5.62 | K7: A1 | L7: Jan | M7: 7.88 | N7: 3.37 | O7: 138.97 | P7: 3.33 | Q7: 4.12
A8: Feb | B8: =+B7 -> 150 | C8: 13.49 | D8: 3.64 | E8: 482.39 | F8: 50 | G8: 3.64 | H8: 6.45 | L8: Feb | M8: 11.67 | N8: 3.85 | O8: 240.53 | P8: 3.86 | Q8: 6.15
A9: Mar | B9: =+B8 -> 150 | C9: 12.25 | D9: 3.48 | E9: 651.44 | F9: 50 | G9: 3.48 | H9: 7.23 | L9: Mar | M9: 7.26 | N9: 3.38 | O9: 135.49 | P9: 3.36 | Q9: 3.95 | S9: Whole Installation table A5:H18:
A10: Apr | B10: 150 | C10: 40.14 | D10: 3.55 | E10: 1105.53 | F10: 50 | G10: 3.54 | H10: 14.56 | L10: Apr | M10: 5.24 | N10: 3.22 | O10: 168.26 | P10: 3.19 | Q10: 4.01 | S10: Mean: for 10-min and daily periods use average of all operational combustion lines.
A11: May | B11: 150 | C11: 7.7 | D11: 3.49 | E11: 605.06 | F11: 50 | G11: 3.5 | H11: 7.25 | L11: May | M11: 6.97 | N11: 3.54 | O11: 605.06 | P11: 3.55 | Q11: 7.25
A12: Jun | B12: 150 | C12: 47.26 | D12: 4.24 | E12: 890.64 | F12: 50 | G12: 4.24 | H12: 18.65 | L12: Jun | M12: 8.65 | N12: 3.36 | O12: 322.33 | P12: 3.36 | Q12: 6.92
A13: Jul | B13: 150 | C13: 18.7 | D13: 3.85 | E13: 316.11 | F13: 50 | G13: 3.85 | H13: 6.4 | L13: Jul | M13: 8.43 | N13: 3.66 | O13: 316.11 | P13: 3.65 | Q13: 5.96 | S13: Maximum: for 10-min and daily periods use the highest of all operational combustion lines in any month.
A14: Aug | B14: 150 | C14: 17.13 | D14: 5.35 | E14: 930.98 | F14: 50 | G14: 5.22 | H14: 11.64 | L14: Aug | M14: 13.27 | N14: 5.04 | O14: 437.22 | P14: 5.04 | Q14: 10.54
A15: Sep | B15: 150 | C15: 23.26 | D15: 4.86 | E15: 401.42 | F15: 50 | G15: 4.84 | H15: 7.72 | L15: Sep | M15: 10.34 | N15: 5.44 | O15: 199.88 | P15: 5.42 | Q15: 6.68
A16: Oct | B16: 150 | C16: 11.87 | D16: 4.99 | E16: 269.8 | F16: 50 | G16: 4.99 | H16: 7.65 | L16: Oct | M16: 11.87 | N16: 5.21 | O16: 269.8 | P16: 5.21 | Q16: 7.51
A17: Nov | B17: 150 | C17: 19.8 | D17: 4.99 | E17: 240.39 | F17: 50 | G17: 4.97 | H17: 7.17 | L17: Nov | M17: 9.47 | N17: 5.32 | O17: 240.39 | P17: 5.27 | Q17: 7.17
A18: Dec | B18: 150 | C18: 20.43 | D18: 4.5 | E18: 211.44 | F18: 50 | G18: 4.51 | H18: 7.39 | L18: Dec | M18: 20.43 | N18: 5.23 | O18: 185.91 | P18: 5.31 | Q18: 7.39
L19: Annual | M19: =AVERAGE(M7:M18) -> 10.12333333 | O19: =MAX(O7:O18) -> 605.06 | P19: =AVERAGE(P7:P18) -> 4.2125 | Q19: =MAX(Q7:Q18) -> 10.54
K21: =+A6 -> 2022 | L21: mg/Nm3 | M21: 95%ile 10-min avg maximum | N21: Monthly CO 10-min avg mean | O21: 10-min avg maximum | P21: Monthly daily mean | Q21: Monthly daily maximum
K22: A2 | L22: Jan | M22: 7.85 | N22: 2.77 | O22: 254.17 | P22: 2.79 | Q22: 5.62
L23: Feb | M23: 13.49 | N23: 3.48 | O23: 482.39 | P23: 3.47 | Q23: 6.45
L24: Mar | M24: 12.25 | N24: 3.53 | O24: 651.44 | P24: 3.52 | Q24: 7.23
L25: Apr | M25: 40.14 | N25: 3.81 | O25: 1105.53 | P25: 3.82 | Q25: 14.56
L26: May | M26: 7.7 | N26: 3.45 | O26: 550.07 | P26: 3.45 | Q26: 7.22
L27: Jun | M27: 47.26 | N27: 5.11 | O27: 890.64 | P27: 5.11 | Q27: 18.65
L28: Jul | M28: 18.7 | N28: 4.05 | O28: 201.64 | P28: 4.05 | Q28: 6.4
L29: Aug | M29: 17.13 | N29: 5.7 | O29: 930.98 | P29: 5.44 | Q29: 11.64
L30: Sep | M30: 23.26 | N30: 4.47 | O30: 401.42 | P30: 4.47 | Q30: 7.72
L31: Oct | M31: 10.96 | N31: 4.76 | O31: 230.83 | P31: 4.76 | Q31: 7.65
L32: Nov | M32: 19.8 | N32: 4.57 | O32: 180.25 | P32: 4.6 | Q32: 6.3
L33: Dec | M33: 12.23 | N33: 3.57 | O33: 211.44 | P33: 3.53 | Q33: 6.09
L34: Annual | M34: =AVERAGE(M22:M33) -> 19.23083333 | O34: =MAX(O22:O33) -> 1105.53 | P34: =AVERAGE(P22:P33) -> 4.084166667 | Q34: =MAX(Q22:Q33) -> 18.65
K36: =+A6 -> 2022 | L36: mg/Nm3 | M36: 95%ile 10-min avg maximum | N36: Monthly CO 10-min avg mean | O36: 10-min avg maximum | P36: Monthly daily mean | Q36: Monthly daily maximum
K37: A3 | L37: Jan
L38: Feb
L39: Mar
L40: Apr
L41: May
L42: Jun
L43: Jul
L44: Aug
L45: Sep
L46: Oct
L47: Nov
A48: Comments : | L48: Dec
A49: K3 facility operates 2 lines (2 boilers and 2 emission points) with 1 common turbine. Environment Agency explanatory note: The 10-minute average ELV is based on the “95th percentile”. In this case this means that 95% of the 10 minute averages in the relevant 24-hour period (i.e. 137) must be below 150 mg/Nm3, and 5% (i.e. 7) are allowed to be any value above 150 mg/Nm3. Whilst we expect operators to minimise CO emissions at all times, it is perfectly acceptable for the value of the maximum 10-minute average to be above 150 mg/Nm3, provided the 95th percentile ELV has been met for that period. | L49: Annual | M49: =AVERAGE(M37:M48) ->  | O49: =MAX(O37:O48) -> 0 | P49: =AVERAGE(P37:P48) ->  | Q49: =MAX(Q37:Q48) -> 0
K51: =+A6 -> 2022 | L51: mg/Nm3 | M51: 95%ile 10-min avg maximum | N51: Monthly CO 10-min avg mean | O51: 10-min avg maximum | P51: Monthly daily mean | Q51: Monthly daily maximum
K52: A4 | L52: Jan
L53: Feb
L54: Mar
L55: Apr
L56: May
L57: Jun
L58: Jul
L59: Aug
L60: Sep
L61: Oct
L62: Nov
L63: Dec
L64: Annual | M64: =AVERAGE(M52:M63) ->  | O64: =MAX(O52:O63) -> 0 | P64: =AVERAGE(P52:P63) ->  | Q64: =MAX(Q52:Q63) -> 0
K66: =+A6 -> 2022 | L66: mg/Nm3 | M66: 95%ile 10-min avg maximum | N66: Monthly CO 10-min avg mean | O66: 10-min avg maximum | P66: Monthly daily mean | Q66: Monthly daily maximum
K67: A5 | L67: Jan
L68: Feb
L69: Mar
L70: Apr
L71: May
L72: Jun
L73: Jul
L74: Aug
L75: Sep
L76: Oct
L77: Nov
L78: Dec
L79: Annual | M79: =AVERAGE(M67:M78) ->  | O79: =MAX(O67:O78) -> 0 | P79: =AVERAGE(P67:P78) ->  | Q79: =MAX(Q67:Q78) -> 0

Sheet NH3
A1: =+'Cover Page'!$B$29 -> Annual Performance Report 2022 | E1: =+'Cover Page'!$B$33 -> Kemsley Generating Station
A3: Monitoring of Ammnonia emissions | D3: Whole Installation | G3: See Notes in Cell Q3 | J3: =+A3 -> Monitoring of Ammnonia emissions | N3: Per Combustion Line | Q3: Notes:
Q4: User to add logic to complete Whole installation, Table A5:G18. From the data in Per Combustion Line, Table J6:O79, subject to No. of lines installed
A5: mg/Nm3 | B5: 1/2 Hourly Reference Periods | E5: Daily Reference Periods
A6: =+'Cover Page'!C39 -> 2022 | B6: *1/2 hourly NH3 ELV | C6: Monthly 1/2 hourly mean | D6: Highest 1/2 hourly maximum | E6: Daily NH3 ELV | F6: Monthly daily mean | G6: Highest daily maximum | J6: =+A6 -> 2022 | K6: mg/Nm3 | L6: Monthly 1/2 hourly mean | M6: Monthly 1/2 hourly maximum | N6: Monthly daily mean | O6: Monthly daily maximum
A7: Jan | B7: 0 | C7: 0.42 | D7: 4.46 | E7: 10 | F7: 0.41 | G7: 0.8 | J7: A1 | K7: Jan | L7: 0.52 | M7: 4.46 | N7: 0.5 | O7: 0.8
A8: Feb | B8: 0 | C8: 0.45 | D8: 3 | E8: 10 | F8: 0.42 | G8: 1.36 | K8: Feb | L8: 0.64 | M8: 3 | N8: 0.61 | O8: 1.36
A9: Mar | B9: 0 | C9: 0.48 | D9: 2.65 | E9: 10 | F9: 0.45 | G9: 1.37 | K9: Mar | L9: 0.99 | M9: 2.65 | N9: 0.94 | O9: 1.37 | Q9: Whole Installation table A5:G18:
A10: Apr | B10: 0 | C10: 0.74 | D10: 6.12 | E10: 10 | F10: 0.73 | G10: 2.04 | K10: Apr | L10: 1.29 | M10: 6.12 | N10: 1.26 | O10: 2.04 | Q10: Mean: for 1/2 hourly and daily periods calculate mean of values across all operational combustion lines for the month
A11: May | B11: 0 | C11: 0.43 | D11: 2.66 | E11: 10 | F11: 0.43 | G11: 1.14 | K11: May | L11: 0.58 | M11: 2.66 | N11: 0.57 | O11: 1.14
A12: Jun | B12: 0 | C12: 0.33 | D12: 1.26 | E12: 10 | F12: 0.33 | G12: 0.58 | K12: Jun | L12: 0.39 | M12: 1.26 | N12: 0.39 | O12: 0.58
A13: Jul | B13: 0 | C13: 0.41 | D13: 1.98 | E13: 10 | F13: 0.41 | G13: 0.97 | K13: Jul | L13: 0.34 | M13: 1.27 | N13: 0.34 | O13: 0.7 | Q13: Maximum: for 1/2 hourly and daily periods use the highest value across all operational combustion lines for the month
A14: Aug | B14: 0 | C14: 0.4 | D14: 3.58 | E14: 10 | F14: 0.39 | G14: 0.67 | K14: Aug | L14: 0.33 | M14: 3.58 | N14: 0.33 | O14: 0.54
A15: Sep | B15: 0 | C15: 0.45 | D15: 2.51 | E15: 10 | F15: 0.43 | G15: 0.86 | K15: Sep | L15: 0.56 | M15: 2.51 | N15: 0.54 | O15: 0.86
A16: Oct | B16: 0 | C16: 0.4 | D16: 2.09 | E16: 10 | F16: 0.4 | G16: 1.08 | K16: Oct | L16: 0.45 | M16: 2.09 | N16: 0.45 | O16: 1.08
A17: Nov | B17: 0 | C17: 0.65 | D17: 5.51 | E17: 10 | F17: 0.62 | G17: 1.15 | K17: Nov | L17: 0.84 | M17: 5.51 | N17: 0.79 | O17: 1.15
A18: Dec | B18: 0 | C18: 0.42 | D18: 2.4 | E18: 10 | F18: 0.4 | G18: 1.07 | K18: Dec | L18: 0.62 | M18: 2.4 | N18: 0.62 | O18: 1.07
K19: Annual | L19: =AVERAGE(L7:L18) -> 0.6291666667 | M19: =MAX(M7:M18) -> 6.12 | N19: =AVERAGE(N7:N18) -> 0.6116666667 | O19: =MAX(O7:O18) -> 2.04
J21: =+A6 -> 2022 | K21: mg/Nm3 | L21: Monthly 1/2 hourly mean | M21: Monthly 1/2 hourly maximum | N21: Monthly daily mean | O21: Monthly daily maximum
J22: A2 | K22: Jan | L22: 0.25 | M22: 0.71 | N22: 0.24 | O22: 0.31
K23: Feb | L23: 0.29 | M23: 1.72 | N23: 0.29 | O23: 0.94
K24: Mar | L24: 0.28 | M24: 2.02 | N24: 0.28 | O24: 0.7
K25: Apr | L25: 0.31 | M25: 1.72 | N25: 0.31 | O25: 0.66
K26: May | L26: 0.29 | M26: 1.2 | N26: 0.29 | O26: 0.53
K27: Jun | L27: 0.27 | M27: 0.91 | N27: 0.27 | O27: 0.39
K28: Jul | L28: 0.49 | M28: 1.98 | N28: 0.49 | O28: 0.97
K29: Aug | L29: 0.48 | M29: 2.25 | N29: 0.46 | O29: 0.67
K30: Sep | L30: 0.36 | M30: 1.38 | N30: 0.36 | O30: 0.62
K31: Oct | L31: 0.35 | M31: 1.51 | N31: 0.35 | O31: 0.71
K32: Nov | L32: 0.41 | M32: 1.7 | N32: 0.41 | O32: 0.64
K33: Dec | L33: 0.16 | M33: 2.17 | N33: 0.13 | O33: 0.91
K34: Annual | L34: =AVERAGE(L22:L33) -> 0.3283333333 | M34: =MAX(M22:M33) -> 2.25 | N34: =AVERAGE(N22:N33) -> 0.3233333333 | O34: =MAX(O22:O33) -> 0.97
J36: =+A6 -> 2022 | K36: mg/Nm3 | L36: Monthly 1/2 hourly mean | M36: Monthly 1/2 hourly maximum | N36: Monthly daily mean | O36: Monthly daily maximum
J37: A3 | K37: Jan
K38: Feb
K39: Mar
K40: Apr
K41: May
K42: Jun
K43: Jul
K44: Aug
K45: Sep
K46: Oct
K47: Nov
A48: Comments : | K48: Dec
A49: K3 facility operates 2 lines (2 boilers and 2 emission points) with 1 common turbine. *An indicated ELV value of zero in the table above means that no ammonia limit is set in the permit; not that the ELV is 0. | K49: Annual | L49: =AVERAGE(L37:L48) ->  | M49: =MAX(M37:M48) -> 0 | N49: =AVERAGE(N37:N48) ->  | O49: =MAX(O37:O48) -> 0
J51: =+A6 -> 2022 | K51: mg/Nm3 | L51: Monthly 1/2 hourly mean | M51: Monthly 1/2 hourly maximum | N51: Monthly daily mean | O51: Monthly daily maximum
J52: A4 | K52: Jan
K53: Feb
K54: Mar
K55: Apr
K56: May
K57: Jun
K58: Jul
K59: Aug
K60: Sep
K61: Oct
K62: Nov
K63: Dec
K64: Annual | L64: =AVERAGE(L52:L63) ->  | M64: =MAX(M52:M63) -> 0 | N64: =AVERAGE(N52:N63) ->  | O64: =MAX(O52:O63) -> 0
J66: =+A6 -> 2022 | K66: mg/Nm3 | L66: Monthly 1/2 hourly mean | M66: Monthly 1/2 hourly maximum | N66: Monthly daily mean | O66: Monthly daily maximum
J67: A5 | K67: Jan
K68: Feb
K69: Mar
K70: Apr
K71: May
K72: Jun
K73: Jul
K74: Aug
K75: Sep
K76: Oct
K77: Nov
K78: Dec
K79: Annual | L79: =AVERAGE(L67:L78) ->  | M79: =MAX(M67:M78) -> 0 | N79: =AVERAGE(N67:N78) ->  | O79: =MAX(O67:O78) -> 0
